{"text_format":"1","workbook":"xlsx","n_sheets":7,"sheets":["MATRIZ DE INDICADORES","EAA-1","EAA-2","EAA-8","EAA-10","ACTUALIZACIONES","ITEM"],"not_rendered":{"charts":4,"images":4,"macros":1,"external_links":3,"defined_names":16,"comments":4,"pivot_tables":0},"unopened":[],"bounds":{"document_bytes":16777216,"sheet_cells":100000,"rows_first":2000,"rows_last":500,"rows_between":2000,"halvings":0,"cell_chars":16384,"cell_head_chars":4096},"cells_cut":0,"cells_raw":0,"read":"whole","date_system":"1900"}

{"sheet":"MATRIZ DE INDICADORES","index":0,"n_rows":55,"n_cols":21,"rows_kept":55,"cut":false,"hidden":false,"merged":[[40,1,40,20],[2,18,2,20],[3,18,3,20],[4,18,4,20],[9,1,10,20],[6,16,7,17],[12,18,18,18],[12,19,18,19],[12,20,18,20],[12,6,18,6],[12,7,18,7],[12,8,18,8],[12,9,18,9],[12,10,18,10],[19,10,23,10],[29,6,34,6],[39,1,39,20],[1,1,4,2],[1,3,1,17],[2,3,2,17],[3,3,4,17],[19,6,23,6],[19,7,23,7],[19,8,23,8],[19,9,23,9],[12,1,34,1],[12,2,34,2],[12,3,34,3],[12,5,34,5],[24,6,28,6],[24,7,28,7],[24,8,28,8],[24,9,28,9],[29,7,34,7],[29,8,34,8],[29,9,34,9],[19,20,23,20],[24,10,28,10],[24,11,28,11],[24,18,28,18],[24,19,28,19],[12,4,18,4],[19,4,23,4],[24,4,28,4],[29,4,34,4],[1,18,1,20],[29,10,34,10],[24,20,28,20],[12,17,34,17],[12,11,18,11],[29,11,34,11],[29,18,34,18],[29,19,34,19],[29,20,34,20],[19,18,23,18],[19,19,23,19],[19,11,23,11]]}
[]
[null,null,null,"MACROPROCESO ESTRATÉGICO",null,null,null,null,null,null,null,null,null,null,null,null,null,null,"CÓDIGO: ESGr027"]
[null,null,null,"PROCESO GESTIÓN SISTEMAS INTEGRADOS - CALIDAD",null,null,null,null,null,null,null,null,null,null,null,null,null,null,"VERSIÓN: 8"]
[null,null,null,"MATRIZ DE MEDICIÓN Y SEGUIMIENTO A LOS PROCESOS DE GESTIÓN",null,null,null,null,null,null,null,null,null,null,null,null,null,null,"VIGENCIA: 2023-07-28"]
[null,null,null,null,null,null,null,null,null,null,null,null,null,null,null,null,null,null,"PÁGINA: 1 de 6"]
[]
[null,null,null,null,null,null,null,null,null,null,null,null,null,null,null,null,"FECHA DE ACTUALIZACIÓN:",null,"AÑO","MES","DÍA"]
[null,null,null,null,null,null,null,null,null,null,null,null,null,null,null,null,null,null,2024,2,23]
[]
[null,"ALINEACIÓN DE LOS INDICADORES CON LOS DOCUMENTOS ESTRATÉGICOS Y LOS OBJETIVOS DE CALIDAD"]
[]
[null,"PROCESO GESTIÓN","FRENTES DEL PLAN ESTRATÉGICO","LINEAMIENTOS DE LA POLÍTICA DE CALIDAD","OBJETIVOS DE CALIDAD","OBJETIVO GENERAL DEL PROCESO","OBJETIVOS ESPECÍFICOS","NOMBRE INDICADOR","FÓRMULA","TIPO DE INDICADOR","SEGUIMIENTO MEDICIÓN","META","ACTIVIDAD","RESPONSABLE DE LA ACTIVIDAD","¿QUÉ RECURSOS SE REQUIEREN?","FECHA EJECUCIÓN DE ACTIVIDADES","EVIDENCIA","¿CUÁNDO FINALIZARÁ?","RESULTADO ","NIVEL OBTENIDO","ACCESO"]
[null,"Autoevaluación y Acreditación","Frente Estratégico I: Campo Multidimensional de Aprendizaje (CMA): Desde la acreditación de programas y la acreditación institucional"," La satisfacción de las necesidades y expectativas de la comunidad universitaria a través de la  adopción del campo multidimensional de aprendizaje","2. Lograr la acreditación de programas y la acreditación institucional de acuerdo a la planificación de las metas  institucionales resultantes de los ejercicios de autoevaluación y acreditación\n\n\n\n\n","Coordinar los procesos de Registro Calificado, Autoevaluación y Acreditación de los programas académicos para cumplir con los requerimientos del Ministerio de Educación Nacional (MEN) y del Consejo Nacional de Acreditación (CNA), a través de la cultura del aseguramiento de la calidad.","Obtener los registros calificados para los Programas Académicos, de la totalidad de los procesos a los que el MEN de trámite de aprobación durante la Vigencia 2024.","Eficacia en la obtención de registros calificados","Número de registros calificados otorgados *100 / Número de registros calificados emitidos por el MEN","Eficacia","Semestral",1,"Contratar expertos disciplinarios para la construcción de los documentos","Dirección de Autoevaluación y Acreditación","Financieros para el contrato según el paa.","IIPA2024","Anexo de personal académico",2024,{"$f":"#REF!","v":{"$error":"#REF!"}},null,"EAA-1"]
[null,null,null,null,null,null,null,null,null,null,null,null,"Construir los documentos maestros para procesos de Registro Calificado","Dirección de Autoevaluación y Acreditación","Recurso Humano\nOffice 365","IIPA2024","Documento Maestro y Anexos para los procesos de Registro Calificado"]
[null,null,null,null,null,null,null,null,null,null,null,null,"Radicar los documentos maestro y anexos","Dirección de Autoevaluación y Acreditación","Recurso Humano\nOffice 365","IPA2024","Soporte de radicación del procesos en plataforma del MEN"]
[null,null,null,null,null,null,null,null,null,null,null,null,"Atender la visita de los pares académicos","*Dirección de Autoevaluación y Acreditación\n*Procesos adscritos a la Vicerrectoría Académica","Financiero (de inversión)\nRecurso Humano\nOffice 365","Entre IPA2024 a Vigencia 2025","Actas de visita"]
[null,null,null,null,null,null,null,null,null,null,null,null,"Responder requerimientos adicionales","Dirección de Autoevaluación y Acreditación","Recurso Humano\nOffice 365","En caso que aplique","Respuesta a los requerimiento por plataforma del MEN"]
[null,null,null,null,null,null,null,null,null,null,null,null,"Medir los resultados de la  eficacia en la obtención de registros calificados","Dirección de Autoevaluación y Acreditación","Recurso Humano\nOffice 365","Jun - 24\nDic - 24","Medición del indicador"]
[null,null,null,null,null,null,null,null,null,null,null,null,"Implementar acciones según los resultados","Dirección de Autoevaluación y Acreditación","Recurso Humano\nOffice 365","Según la necesidad","Ficha técnica de indicador - Acción formulada"]
[null,null,null,null,"5. Mejorar continuamente el desempeño de los procesos a través de la implementación de buenas prácticas institucionales y de la aplicación de los mecanismos dispuestos por la universidad de Cundinamarca, para la constitución de  una organización universitaria inteligente con alma y corazón",null,"Dar cumplimiento a los planes de mejoramiento en un 80% de las actividades establecidas producto de la autoevaluación con vigencia 2022 - 2024, durante los dos periodos académicos del 2024.","Cumplimiento de los planes de mejoramiento producto de la autoevaluación vigencia 2022 -2024","Total de actividades ejecutadas *100 / Total de actividades establecidas para la vigencia en curso","Eficacia","Semestral",0.8,"Planificar el Cronograma para seguimiento a planes de mejoramiento","Dirección de Autoevaluación y Acreditación","Recurso Humano\nOffice 365","IPA2024","Cronograma",null,{"$f":"'EAA-2'!D47","v":0.54900000000000004},null,"EAA-2"]
[null,null,null,null,null,null,null,null,null,null,null,null,"Realizar seguimiento a los planes de mejoramiento ","Dirección de Autoevaluación y Acreditación","Recurso Humano\nOffice 365\nSoftware Pensemos","Jun - 24\nNov - 24\n\nJun - 25\nNov - 25","Acta de seguimiento de cada programa"]
[null,null,null,null,null,null,null,null,null,null,null,null,"Presentar los avances al Comisión de Acreditación","Dirección de Autoevaluación y Acreditación","Recurso Humano\nOffice 365","Jul-24\nDic - 24\n\nJul-25\nDic-25","Actas de la comisión"]
[null,null,null,null,null,null,null,null,null,null,null,null,"Medir los resultados del cumplimiento de los planes de mejoramiento producto de la autoevaluación vigencia 2022 -2024","Dirección de Autoevaluación y Acreditación","Recurso Humano\nOffice 365","Jun - 24\nDic - 24","Medición del indicador"]
[null,null,null,null,null,null,null,null,null,null,null,null,"Implementar acciones según los resultados","Dirección de Autoevaluación y Acreditación","Recurso Humano\nOffice 365","Según la necesidad","Ficha técnica de indicador - Acción formulada"]
[null,null,null,null,"5. Mejorar continuamente el desempeño de los procesos a través de la implementación de buenas prácticas institucionales y de la aplicación de los mecanismos dispuestos por la universidad de Cundinamarca, para la constitución de  una organización universitaria inteligente con alma y corazón",null,"Dar cumplimiento a los planes de contingencia en un 85% de las actividades programadas, para los programas académicos en finalización de cohortes, producto de desistimiento de renovación de registro calificado, dentro dos periodos académicos en curso.","Cumplimiento de los planes de contingencia","Total de actividades ejecutadas oportunamente durante la vigencia en curso *100 / Total de actividades programadas durante la vigencia en curso","Eficiencia","Trimestral",0.85,"Planificar el Cronograma para seguimiento a planes de contingencia","Dirección de Autoevaluación y Acreditación","Recurso Humano\nOffice 365","IPA2024","Cronograma",null,{"$f":"#REF!","v":{"$error":"#REF!"}},null,"EAA-8"]
[null,null,null,null,null,null,null,null,null,null,null,null,"Realizar seguimiento a los planes de contingencia","Dirección de Autoevaluación y Acreditación","Recurso Humano\nOffice 365\nSoftware Pensemos","Abr -24\nJul - 24\nOct -24\nEne -25","Informe de seguimiento - Planes de contingencia"]
[null,null,null,null,null,null,null,null,null,null,null,null,"Agendar la presentación de los avances al Comisión de Acreditación","Dirección de Autoevaluación y Acreditación","Recurso Humano\nOffice 365","May-24\nAgo - 24\nNov -24\nFeb -25","Actas de la comisión"]
[null,null,null,null,null,null,null,null,null,null,null,null,"Medir los resultados del Cumplimiento de los planes de contingencia","Dirección de Autoevaluación y Acreditación","Recurso Humano\nOffice 365","Mar - 24\nJun-24\nSep-24\nDic - 24","Medición del indicador"]
[null,null,null,null,null,null,null,null,null,null,null,null,"Implementar acciones según los resultados","Dirección de Autoevaluación y Acreditación","Recurso Humano\nOffice 365","Según la necesidad","Ficha técnica de indicador - Acción formulada"]
[null,null,null,null,"2. Lograr la acreditación de programas y la acreditación institucional de acuerdo a la planificación de las metas  institucionales resultantes de los ejercicios de autoevaluación y acreditación",null,"Lograr la radicación de los documentos para apreciación de condiciones iniciales de los 3 programas académicos, en cumplimiento de la ruta de acreditación en alta calidad de la Universidad de Cundinamarca durante la vigencia de 2024.","Eficacia en la radicación de documentos para solicitud de apreciación de documentos iniciales.","Número de documentos radicados ante el CNA para apreciación de condiciones iniciales","Eficacia","Anual ",3,"Planificar el Cronograma para la construcción y radicación de documentos maestros para apreciación de condiciones iniciales","Dirección de Autoevaluación y Acreditación","Recurso Humano\nOffice 365","IPA2024","Cronograma",null,{"$f":"#REF!","v":{"$error":"#REF!"}},null,"EAA-10"]
[null,null,null,null,null,null,null,null,null,null,null,null,"Coordinar con los programas la construcción de los documentos maestros para la apreciación de condiciones iniciales","Dirección de Autoevaluación y Acreditación","Recurso Humano\nOffice 365","IIPA2024","Soportes de mesa de trabajo"]
[null,null,null,null,null,null,null,null,null,null,null,null,"Construir los documentos maestros para apreciación de condiciones iniciales","Dirección de Autoevaluación y Acreditación","Recurso Humano\nOffice 365","IIPA2024","Documento Maestro y Anexos para presentación de condiciones iniciales"]
[null,null,null,null,null,null,null,null,null,null,null,null,"Radicar los documentos maestro y anexos","Dirección de Autoevaluación y Acreditación","Recurso Humano\nOffice 365","IIPA2024","Soporte de radicación del procesos en plataforma del MEN - CNA"]
[null,null,null,null,null,null,null,null,null,null,null,null,"Medir los resultados de la  eficacia en la radicación de documentos para solicitud de apreciación de documentos iniciales.","Dirección de Autoevaluación y Acreditación","Recurso Humano\nOffice 365","Jun - 24\nDic - 24","Medición del indicador"]
[null,null,null,null,null,null,null,null,null,null,null,null,"Implementar acciones según los resultados","Dirección de Autoevaluación y Acreditación","Recurso Humano\nOffice 365","Según la necesidad","Ficha técnica de indicador - Acción formulada"]
[]
[]
[]
[]
[null,"Diagonal 18 No. 20-29 Fusagasugá – Cundinamarca\nTeléfono (601)  8281483 Línea Gratuita 018000180414\nwww.ucundinamarca.edu.co   E-mail:  info@ucundinamarca.edu.co\nNIT: 890.680.062-2                                                                             "]
[null,"Documento controlado por el Sistema de Gestión de la Calidad\nAsegúrese que corresponde a la última versión consultando el Portal Institucional"]
[]
[]
[]
[]
[]
[]
[]
[]
[null,null,"LINEAMIENTOS DE LA POLÍTICA DE CALIDAD","OBJETIVOS DE CALIDAD","ALINEACIÓN DE LOS INDICADORES CON LOS DOCUMENTOS ESTRATÉGICOS Y LOS OBJETIVOS DE CALIDAD"]
[null,null,"LINEAMIENTOS DE LA POLÍTICA DE SEGURIDAD Y SALUD EN EL TRABAJO","OBJETIVOS DE SEGURIDAD Y SALUD EN EL TRABAJO","ALINEACIÓN DE LOS INDICADORES CON LOS DOCUMENTOS ESTRATÉGICOS Y LOS OBJETIVOS DE SEGURIDAD Y SALUD EN EL TRABAJO"]
[null,null,"LINEAMIENTOS DE LA POLÍTICA DE AMBIENTAL","OBJETIVOS DE AMBIENTAL","ALINEACIÓN DE LOS INDICADORES CON LOS DOCUMENTOS ESTRATÉGICOS Y LOS OBJETIVOS DE AMBIENTAL"]
[null,null,"LINEAMIENTOS DE LA POLÍTICA DE SEGURIDAD DE LA INFORMACIÓN","OBJETIVOS DE SEGURIDAD DE LA INFORMACIÓN","ALINEACIÓN DE LOS INDICADORES CON LOS DOCUMENTOS ESTRATÉGICOS Y LOS OBJETIVOS DE SEGURIDAD DE LA INFORMACIÓN"]
[null,null,"LINEAMIENTOS DE LA POLÍTICA DE SEGURIDAD DE ANTISOBORNO","OBJETIVOS DE SEGURIDAD DE ANTISOBORNO","ALINEACIÓN DE LOS INDICADORES CON LOS DOCUMENTOS ESTRATÉGICOS Y LOS OBJETIVOS DE SEGURIDAD DE ANTISOBORNO"]
[null,null,"LINEAMIENTOS DE LA POLÍTICA DE LA CONCILIACIÓN DE LA VIDA PERSONAL, FAMILIAR Y LABORAL","OBJETIVOS DE LA CONCILIACIÓN DE LA VIDA PERSONAL, FAMILIAR Y LABORAL","ALINEACIÓN DE LOS INDICADORES CON LOS DOCUMENTOS ESTRATÉGICOS Y LOS OBJETIVOS DE LA CONCILIACIÓN DE LA VIDA PERSONAL, FAMILIAR Y LABORAL"]

{"sheet":"EAA-1","index":1,"n_rows":107,"n_cols":15,"rows_kept":107,"cut":false,"hidden":false,"merged":[[66,2,66,5],[66,6,66,9],[66,10,66,14],[67,2,67,5],[67,6,67,9],[67,10,67,14],[64,2,64,5],[64,6,64,9],[64,10,64,14],[65,2,65,5],[65,6,65,9],[65,10,65,14],[62,2,62,5],[62,6,62,9],[62,10,62,14],[63,2,63,5],[63,6,63,9],[63,10,63,14],[60,2,60,5],[60,6,60,9],[60,10,60,14],[61,2,61,5],[61,6,61,9],[61,10,61,14],[58,2,58,5],[58,6,58,9],[58,10,58,14],[59,2,59,5],[59,6,59,9],[59,10,59,14],[56,2,56,5],[56,6,56,9],[56,10,56,14],[57,2,57,5],[57,6,57,9],[57,10,57,14],[54,2,54,5],[54,6,54,9],[54,10,54,14],[55,2,55,5],[55,6,55,9],[55,10,55,14],[52,2,52,5],[52,6,52,9],[52,10,52,14],[53,2,53,5],[53,6,53,9],[53,10,53,14],[42,2,42,14],[49,2,49,14],[50,2,50,5],[50,6,50,9],[50,10,50,14],[51,2,51,5],[51,6,51,9],[51,10,51,14],[26,15,27,15],[27,9,32,14],[33,9,33,14],[34,9,37,14],[38,9,38,14],[39,9,39,14],[22,13,23,14],[23,2,23,3],[23,4,23,6],[25,2,25,14],[26,2,40,8],[26,9,26,14],[40,9,40,14],[19,2,21,3],[19,4,21,6],[19,7,21,8],[19,9,21,10],[19,11,19,14],[22,2,22,3],[22,4,22,6],[22,7,23,8],[22,9,23,10],[22,11,23,12],[16,15,17,15],[17,2,18,3],[17,4,17,5],[17,6,17,10],[17,11,18,12],[17,13,18,14],[18,4,18,5],[18,6,18,10],[16,2,16,3],[16,4,16,6],[16,7,16,8],[16,9,16,10],[16,11,16,12],[16,13,16,14],[12,2,12,3],[12,4,12,14],[13,2,13,3],[13,4,13,14],[14,2,14,14],[15,2,15,14],[8,2,8,14],[9,2,10,14],[11,2,11,3],[11,4,11,7],[11,8,11,9],[11,10,11,14],[1,1,3,2],[4,2,7,3],[4,4,4,11],[4,12,4,14],[5,4,5,11],[5,12,5,14],[6,4,7,11],[6,12,6,14],[7,12,7,14]]}
[]
[null,"      REGRESAR"]
[]
[]
[null,null,null,null,"MACROPROCESO ESTRATÉGICO",null,null,null,null,null,null,null,"CÓDIGO: ESGr027"]
[null,null,null,null,"PROCESO GESTIÓN SISTEMAS INTEGRADOS",null,null,null,null,null,null,null,"VERSIÓN: 8"]
[null,null,null,null,"MATRIZ DE MEDICIÓN Y SEGUIMIENTO A LOS PROCESOS DE GESTIÓN",null,null,null,null,null,null,null,"VIGENCIA: 2023-07-28"]
[null,null,null,null,null,null,null,null,null,null,null,null,"PÁGINA: 2 de 6"]
[]
[null,null,"FICHA DE INDICADOR"]
[]
[null,null,"MACROPROCESO",null,"Estratégico",null,null,null,"NOMBRE DEL INDICADOR",null,"Eficacia en la obtención de registros calificados"]
[null,null,"PROCESO GESTIÓN",null,"Autoevaluación y Acreditación"]
[null,null,"RESPONSABLE DE MEDICIÓN",null,"Director de Autoevaluación y Acreditación"]
[]
[null,null,"1. COMPORTAMIENTO DE INDICADOR"]
[null,null,"CLASIFICACIÓN DE LA MEDICIÓN",null,1,null,null,"TIPO DE INDICADOR",null,"Eficacia",null,"META ANUAL",null,1]
[null,null,"FORMULA",null,"NUMERADOR",null,"Número de registros calificados otorgados *100",null,null,null,null,"UNIDAD DE MEDIDA",null,"Porcentual"]
[null,null,null,null,"DENOMINADOR",null,"Número de registros calificados emitidos por el MEN"]
[null,null,"TENDENCIA",null,"Positiva",null,null,"NIVEL DE SEGREGACIÓN *",null,"Por Programa Académico",null,"ESCALA"]
[null,null,null,null,null,null,null,null,null,null,null,"Deficiente","Aceptable","Bueno","Excelente"]
[null,null,null,null,null,null,null,null,null,null,null,"0% - 99%","N/A",1,">100%"]
[null,null,"ORIGEN DE DATOS NUMERADOR",null,"Acto administrativo emitido por el MEN",null,null,"FRECUENCIA DE LA MEDICIÓN",null,"SEMESTRAL",null,"FRECUENCIA DE RESULTADO",null,"ANUAL"]
[null,null,"ORIGEN DE DATOS DENOMINADOR",null,"Acto administrativo emitido por el MEN"]
[]
[null,null,"RESULTADOS"]
[null,null,null,null,null,null,null,null,null,"ANÁLISIS DE DATOS"]
[null,null,null,null,null,null,null,null,null,"I SEMESTRE: En el primer semestre de 2024 el Ministerio de Educación Nacional ha emitido 7 (siete) actos administrativos de Registro Calificado a programas académicos de la Universidad de Cundinamarca; los cuales son: renovación de registro calificado del programa de Especialización en Gerencia para la Transformación Digital; y obtención de registro calificado de los programas de Especialización en Nutrición y Alimentación de Especies no Convencionales,  Especialización en Gestión Pública, Especialización en Agronegocios Sostenibles, Especialización en Marketing Digital,  e Ingeniería Mecatrónica sede Chía.\n\nLos siete procesos han sido positivos por lo que no se han tenido negación de registros calificados por parte del MEN.\n\nII SEMESTRE: En la vigencia 2024 el Ministerio de Educación Nacional ha emitido 17 (diecisiete) actos administrativos de Registro Calificado a programas académicos de la Universidad de Cundinamarca; los cuales son: renovación de registro calificado del programa de Especialización en Gerencia para la Transformación Digital; y obtención de registro calificado de los programas de Especialización en Nutrición y Alimentación de Especies no Convencionales,  Especialización en Gestión Pública, Especialización en Agronegocios Sostenibles, Especialización en Marketing Digital,  Ingeniería Mecatrónica sede Chía, Administración de Empresas sede Soacha, Especialización en Deporte Escolar, Maestría en Gestión Estratégica en Nutrición y Alimentación Animal, Maestría en Ciencias Agrarias con énfasis en Hortifruticultura, Medicina Veterinaria y Zootecnia Sede Ubaté, Especialización en Inteligencia Artificial, Especialización en Infraestructura y Seguridad de Redes, Especialización en Analítica y Ciencia de Datos, Especialización en Recursos Zoogenéticos, Especialización en Metodologías de Calidad para el desarrollo de Software\nLos diecisiete procesos han sido positivos por lo que no se han tenido negación de registros calificados por parte del MEN.\n\n"]
[]
[]
[]
[]
[]
[null,null,null,null,null,null,null,null,null,"ACCIÓN FORMULADA"]
[null,null,null,null,null,null,null,null,null,"No aplica teniendo en cuenta que se genera 100% de eficacia en la obtención de registros calificados."]
[]
[]
[]
[null,null,null,null,null,null,null,null,null,"RESPONSABLE "]
[null,null,null,null,null,null,null,null,null,{"$f":"E14","v":"Director de Autoevaluación y Acreditación"}]
[]
[]
[null,null,"PERIODO DE EVALUACIÓN"]
[null,null,"MES",{"$f":"IF(J23=\"MENSUAL\",\"ENERO\",IF(J23=\"TRIMESTRAL\",\"MARZO\",IF(J23=\"SEMESTRAL\",\"JUNIO\",IF(J23=\"ANUAL\",YEAR(TODAY()),\"\"))))","v":"JUNIO"},{"$f":"IF(J23=\"MENSUAL\",\"FEBRERO\",IF(J23=\"TRIMESTRAL\",\"JUNIO\",IF(J23=\"SEMESTRAL\",\"DICIEMBRE\",\"\")))","v":"DICIEMBRE"},{"$f":"IF(J23=\"MENSUAL\",\"MARZO\",IF(J23=\"TRIMESTRAL\",\"SEPTIEMBRE\",\"\"))","v":""},{"$f":"IF(J23=\"MENSUAL\",\"ABRIL\",IF(J23=\"TRIMESTRAL\",\"DICIEMBRE\",\"\"))","v":""},{"$f":"IF(J23=\"MENSUAL\",\"MAYO\",\"\")","v":""},{"$f":"IF(J23=\"MENSUAL\",\"JUNIO\",\"\")","v":""},{"$f":"IF(J23=\"MENSUAL\",\"JULIO\",\"\")","v":""},{"$f":"IF(J23=\"MENSUAL\",\"AGOSTO\",\"\")","v":""},{"$f":"IF(J23=\"MENSUAL\",\"SEPTIEMBRE\",\"\")","v":""},{"$f":"IF(J23=\"MENSUAL\",\"OCTUBRE\",\"\")","v":""},{"$f":"IF(J23=\"MENSUAL\",\"NOVIEMBRE\",\"\")","v":""},{"$f":"IF(J23=\"MENSUAL\",\"DICIEMBRE\",\"\")","v":""}]
[null,null,{"$f":"G18","v":"Número de registros calificados otorgados *100"},7,17]
[null,null,{"$f":"G19","v":"Número de registros calificados emitidos por el MEN"},7,17]
[null,null,"VALOR ",{"$f":"IFERROR(IF($E$17=1,D45/D46,IF($E$17=2,D45,\"\")),\"\")","v":1},{"$f":"IFERROR(IF($E$17=1,E45/E46,IF($E$17=2,E45,\"\")),\"\")","v":1},{"$f":"IFERROR(IF($E$17=1,F45/F46,IF($E$17=2,F45,\"\")),\"\")","v":""},"","","","","","","","",""]
[null,null,"META PONDERADA",{"$f":"IF(AND(N23=\"ANUAL\",J23=\"MENSUAL\"),N17/12,IF(AND(N23=\"ANUAL\",J23=\"TRIMESTRAL\"),N17/4,IF(AND(N23=\"ANUAL\",J23=\"SEMESTRAL\"),N17/2,IF(AND(N23=\"ANUAL\",J23=\"ANUAL\"),N17,IF(AND(N23=\"SEMESTRAL\",J23=\"MENSUAL\"),N17/6,IF(AND(N23=\"SEMESTRAL\",J23=\"TRIMESTRAL\"),N17/2,IF(AND(N23=\"SEMESTRAL\",J23=\"SEMESTRAL\"),N17,IF(AND(N23=\"SEMESTRAL\",J23=\"ANUAL\"),\"REVISAR FRECUENCIAS\",IF(AND(N23=\"TRIMESTRAL\",J23=\"MENSUAL\"),N17/3,IF(AND(N23=\"TRIMESTRAL\",J23=\"TRIMESTRAL\"),N17,IF(AND(N23=\"TRIMESTRAL\",J23=\"SEMESTRAL\"),\"REVISAR FRECUENCIAS\",IF(AND(N23=\"TRIMESTRAL\",J23=\"ANUAL\"),\"REVISAR FRECUENCIAS\",IF(AND(N23=\"MENSUAL\",J23=\"MENSUAL\"),N17,IF(AND(N23=\"MENSUAL\",J23=\"TRIMESTRAL\"),\"REVISAR FRECUENCIAS\",IF(AND(N23=\"MENSUAL\",J23=\"SEMESTRAL\"),\"REVISAR FRECUENCIAS\",IF(AND(N23=\"MENSUAL\",J23=\"ANUAL\"),\"REVISAR FRECUENCIAS\",\"\"))))))))))))))))","v":0.5},{"$f":"IF(AND(N23=\"ANUAL\",J23=\"MENSUAL\"),N17/12+D48,IF(AND(N23=\"ANUAL\",J23=\"TRIMESTRAL\"),N17/4+D48,IF(AND(N23=\"ANUAL\",J23=\"SEMESTRAL\"),N17/2+D48,IF(AND(N23=\"SEMESTRAL\",J23=\"MENSUAL\"),N17/6+D48,IF(AND(N23=\"SEMESTRAL\",J23=\"TRIMESTRAL\"),N17/2+D48,IF(AND(N23=\"SEMESTRAL\",J23=\"SEMESTRAL\"),N17,IF(AND(N23=\"TRIMESTRAL\",J23=\"MENSUAL\"),N17/3+D48,IF(AND(N23=\"TRIMESTRAL\",J23=\"TRIMESTRAL\"),N17,IF(AND(N23=\"MENSUAL\",J23=\"MENSUAL\"),N17,\"\")))))))))","v":1},{"$f":"IF(AND(N23=\"ANUAL\",J23=\"MENSUAL\"),N17/12+E48,IF(AND(N23=\"ANUAL\",J23=\"TRIMESTRAL\"),N17/4+E48,IF(AND(N23=\"SEMESTRAL\",J23=\"MENSUAL\"),N17/6+E48,IF(AND(N23=\"SEMESTRAL\",J23=\"TRIMESTRAL\"),N17/2,IF(AND(N23=\"TRIMESTRAL\",J23=\"MENSUAL\"),N17/3+E48,IF(AND(N23=\"TRIMESTRAL\",J23=\"TRIMESTRAL\"),N17,IF(AND(N23=\"MENSUAL\",J23=\"MENSUAL\"),N17,\"\")))))))","v":""},{"$f":"IF(AND(N23=\"ANUAL\",J23=\"MENSUAL\"),N17/12+F48,IF(AND(N23=\"ANUAL\",J23=\"TRIMESTRAL\"),N17/4+F48,IF(AND(N23=\"SEMESTRAL\",J23=\"MENSUAL\"),N17/6+F48,IF(AND(N23=\"SEMESTRAL\",J23=\"TRIMESTRAL\"),N17/2+F48,IF(AND(N23=\"TRIMESTRAL\",J23=\"MENSUAL\"),N17/3,IF(AND(N23=\"TRIMESTRAL\",J23=\"TRIMESTRAL\"),N17,IF(AND(N23=\"MENSUAL\",J23=\"MENSUAL\"),N17,\"\")))))))","v":""},{"$f":"IF(AND($N$23=\"ANUAL\",$J$23=\"MENSUAL\"),$N$17/12+G48,IF(AND(N23=\"SEMESTRAL\",J23=\"MENSUAL\"),N17/6+G48,IF(AND(N23=\"TRIMESTRAL\",J23=\"MENSUAL\"),N17/3+G48,IF(AND(N23=\"MENSUAL\",J23=\"MENSUAL\"),N17,\"\"))))","v":""},{"$f":"IF(AND($N$23=\"ANUAL\",$J$23=\"MENSUAL\"),$N$17/12+H48,IF(AND(N23=\"SEMESTRAL\",J23=\"MENSUAL\"),N17/6+H48,IF(AND(N23=\"TRIMESTRAL\",J23=\"MENSUAL\"),N17/3+H48,IF(AND(N23=\"MENSUAL\",J23=\"MENSUAL\"),N17,\"\"))))","v":""},{"$f":"IF(AND($N$23=\"ANUAL\",$J$23=\"MENSUAL\"),$N$17/12+I48,IF(AND(N23=\"SEMESTRAL\",J23=\"MENSUAL\"),N17/6,IF(AND(N23=\"TRIMESTRAL\",J23=\"MENSUAL\"),N17/3,IF(AND(N23=\"MENSUAL\",J23=\"MENSUAL\"),N17,\"\"))))","v":""},{"$f":"IF(AND($N$23=\"ANUAL\",$J$23=\"MENSUAL\"),$N$17/12+J48,IF(AND(N23=\"SEMESTRAL\",J23=\"MENSUAL\"),N17/6+J48,IF(AND(N23=\"TRIMESTRAL\",J23=\"MENSUAL\"),N17/3+J48,IF(AND(N23=\"MENSUAL\",J23=\"MENSUAL\"),N17,\"\"))))","v":""},{"$f":"IF(AND($N$23=\"ANUAL\",$J$23=\"MENSUAL\"),$N$17/12+K48,IF(AND(N23=\"SEMESTRAL\",J23=\"MENSUAL\"),N17/6+K48,IF(AND(N23=\"TRIMESTRAL\",J23=\"MENSUAL\"),N17/3+K48,IF(AND(N23=\"MENSUAL\",J23=\"MENSUAL\"),N17,\"\"))))","v":""},{"$f":"IF(AND($N$23=\"ANUAL\",$J$23=\"MENSUAL\"),$N$17/12+L48,IF(AND(N23=\"SEMESTRAL\",J23=\"MENSUAL\"),N17/6+L48,IF(AND(N23=\"TRIMESTRAL\",J23=\"MENSUAL\"),N17/3,IF(AND(N23=\"MENSUAL\",J23=\"MENSUAL\"),N17,\"\"))))","v":""},{"$f":"IF(AND($N$23=\"ANUAL\",$J$23=\"MENSUAL\"),$N$17/12+M48,IF(AND(N23=\"SEMESTRAL\",J23=\"MENSUAL\"),N17/6+M48,IF(AND(N23=\"TRIMESTRAL\",J23=\"MENSUAL\"),N17/3+M48,IF(AND(N23=\"MENSUAL\",J23=\"MENSUAL\"),N17,\"\"))))","v":""},{"$f":"IF(AND($N$23=\"ANUAL\",$J$23=\"MENSUAL\"),$N$17/12+N48,IF(AND(N23=\"SEMESTRAL\",J23=\"MENSUAL\"),N17/6+N48,IF(AND(N23=\"TRIMESTRAL\",J23=\"MENSUAL\"),N17/3+N48,IF(AND(N23=\"MENSUAL\",J23=\"MENSUAL\"),N17,\"\"))))","v":""}]
[]
[null,null,"NIVEL DE SEGREGACIÓN *"]
[null,null,"UNIDAD SEGREGADA (Ej. Facultad, Programa Académico, Área)",null,null,null,"RESULTADO",null,null,null,"ANÁLISIS DE DATOS SEGREGADO"]
[null,null,"Especialización en Nutrición y Alimentación de Especies no Convencionales",null,null,null,"Registro calificado otorgado por el MEN",null,null,null,"El Ministerio de Educación Nacional otorgó Registro Calificado del programa académico mediante Resolución No. 000129 del 11 de enero de 2024"]
[null,null,"Especialización en Gestión Pública",null,null,null,"Registro calificado otorgado por el MEN",null,null,null,"El Ministerio de Educación Nacional otorgó Registro Calificado del programa académico mediante Resolución No. 000148 del 11 de enero de 2024"]
[null,null,"Especialización en Gerencia para la Transformación Digital",null,null,null,"Registro calificado renovado por el MEN",null,null,null,"El Ministerio de Educación Nacional renovó Registro Calificado del programa académico mediante Resolución No. 001411 del 19 de febrero de 2024"]
[null,null,"Especialización en Agronegocios Sostenibles",null,null,null,"Registro calificado otorgado por el MEN",null,null,null,"El Ministerio de Educación Nacional otorgó Registro Calificado del programa académico mediante Resolución No. 002398 del 06 de marzo de 2024"]
[null,null,"Especialización en Marketing Digital",null,null,null,"Registro calificado otorgado por el MEN",null,null,null,"El Ministerio de Educación Nacional otorgó Registro Calificado del programa académico mediante Resolución No. 002223 del 04 de marzo de 2024"]
[null,null,"Especialización en Analítica Aplicada a Negocios",null,null,null,"Registro calificado otorgado por el MEN",null,null,null,"El Ministerio de Educación Nacional otorgó Registro Calificado del programa académico mediante Resolución No. 004994 del 17 de abril de 2024"]
[null,null,"Ingeniería Mecatrónica sede Chía",null,null,null,"Registro calificado otorgado por el MEN",null,null,null,"El Ministerio de Educación Nacional otorgó Registro Calificado del programa académico mediante Resolución No. 005004 del 17 de abril de 2024"]
[null,null,"Administración de Empresas sede Soacha",null,null,null,"Registro calificado otorgado por el MEN",null,null,null,"El Ministerio de Educación Nacional otorgó Registro Calificado del programa académico mediante Resolución No. 012735 del 31 de julio de 2024"]
[null,null,"Especialización en Deporte Escolar",null,null,null,"Registro calificado otorgado por el MEN",null,null,null,"El Ministerio de Educación Nacional otorgó Registro Calificado del programa académico mediante Resolución 015763 del 17 de septiembre de 2024"]
[null,null,"Maestría en Gestión Estratégica en Nutrición y Alimentación Animal ",null,null,null,"Registro calificado otorgado por el MEN",null,null,null,"El Ministerio de Educación Nacional otorgó Registro Calificado del programa académico mediante Resolución 017293 del 08 de octubre de 2024"]
[null,null,"Maestría en Ciencias Agrarias con énfasis en Hortifruticultura",null,null,null,"Registro calificado otorgado por el MEN",null,null,null,"El Ministerio de Educación Nacional otorgó Registro Calificado del programa académico mediante Resolución 019618 del 30 de octubre de 2024"]
[null,null,"Medicina Veterinaria y Zootecnia Sede Ubaté",null,null,null,"Registro calificado otorgado por el MEN",null,null,null,"El Ministerio de Educación Nacional otorgó Registro Calificado del programa académico mediante Resolución 023594 del  29 de noviembre de 2024"]
[null,null,"Especialización en Inteligencia Artificial ",null,null,null,"Registro calificado otorgado por el MEN",null,null,null,"El Ministerio de Educación Nacional otorgó Registro Calificado del programa académico mediante Resolución 023579 del 29 noviembre de 2024 "]
[null,null,"Especialización en Infraestructura y Seguridad de Redes",null,null,null,"Registro calificado otorgado por el MEN",null,null,null,"El Ministerio de Educación Nacional otorgó Registro Calificado del programa académico mediante Resolución 023762 del 04 de diciembre de 2024"]
[null,null,"Especialización en Analítica y Ciencia de Datos",null,null,null,"Registro calificado otorgado por el MEN",null,null,null,"El Ministerio de Educación Nacional otorgó Registro Calificado del programa académico mediante Resolución 023876 del 05 de diciembre de 2024"]
[null,null,"Especialización en Recursos Zoogenéticos",null,null,null,"Registro calificado otorgado por el MEN",null,null,null,"El Ministerio de Educación Nacional otorgó Registro Calificado del programa académico mediante Resolución 024262 06 de diciembre de 2024"]
[null,null,"Especialización en Metodologías de Calidad para el desarrollo de Software",null,null,null,"Registro calificado otorgado por el MEN",null,null,null,"El Ministerio de Educación Nacional otorgó Registro Calificado del programa académico mediante Resolución 024796 del 16 de diciembre de 2024"]
[]
[]
[]
[]
[]
[]
[]
[]
[]
[]
[]
[]
[null,null,null,null,null,null,"Estratégico",null,null,"Eficacia"]
[null,null,null,null,null,null,"Misional",null,null,"Eficiencia"]
[null,null,null,null,null,null,"Apoyo",null,null,"Acreditación"]
[null,null,null,null,null,null,"Seguimiento, Medición, Análisis y Evaluación",null,null,"Positiva"]
[null,null,null,null,null,null,"Direccionamiento Estratégico",null,null,"Negativa"]
[null,null,null,null,null,null,"Planeación Institucional",null,null,"Por Unidad Regional"]
[null,null,null,null,null,null,"Proyectos Especiales y Relaciones Interinstitucionales",null,null,"Por Facultad"]
[null,null,null,null,null,null,"Sistemas Integrados",null,null,"Por Programa Académico"]
[null,null,null,null,null,null,"Autoevaluación y Acreditación",null,null,"Por área"]
[null,null,null,null,null,null,"Comunicaciones",null,null,"Por Laboratorio"]
[null,null,null,null,null,null,"Formación y Aprendizaje",null,null,"Otros"]
[null,null,null,null,null,null,"Ciencia, Tecnología e Innovación",null,null,"No Aplica"]
[null,null,null,null,null,null,"Interacción Social Universitaria"]
[null,null,null,null,null,null,"Bienestar Universitario"]
[null,null,null,null,null,null,"Admisiones y Registro"]
[null,null,null,null,null,null,"Graduados"]
[null,null,null,null,null,null,"Dialogando con el Mundo"]
[null,null,null,null,null,null,"Talento Humano"]
[null,null,null,null,null,null,"Jurídica"]
[null,null,null,null,null,null,"Financiera"]
[null,null,null,null,null,null,"Sistemas y Tecnología"]
[null,null,null,null,null,null,"Bienes y Servicios"]
[null,null,null,null,null,null,"Documental"]
[null,null,null,null,null,null,"Apoyo Académico"]
[null,null,null,null,null,null,"Control Interno"]
[null,null,null,null,null,null,"Control Disciplinario"]
[null,null,null,null,null,null,"Servicio de Atención al Ciudadano"]

{"sheet":"EAA-2","index":2,"n_rows":117,"n_cols":15,"rows_kept":117,"cut":false,"hidden":false,"merged":[[1,1,3,2],[4,2,7,3],[4,4,4,11],[4,12,4,14],[5,4,5,11],[5,12,5,14],[6,4,7,11],[6,12,6,14],[7,12,7,14],[12,2,12,3],[12,4,12,14],[13,2,13,3],[13,4,13,14],[14,2,14,14],[15,2,15,14],[8,2,8,14],[9,2,10,14],[11,2,11,3],[11,4,11,7],[11,8,11,9],[11,10,11,14],[16,15,17,15],[17,2,18,3],[17,4,17,5],[17,6,17,10],[17,11,18,12],[17,13,18,14],[18,4,18,5],[18,6,18,10],[16,2,16,3],[16,4,16,6],[16,7,16,8],[16,9,16,10],[16,11,16,12],[16,13,16,14],[19,2,21,3],[19,4,21,6],[19,7,21,8],[19,9,21,10],[19,11,19,14],[22,2,22,3],[22,4,22,6],[22,7,23,8],[22,9,23,10],[22,11,23,12],[26,15,27,15],[27,9,32,14],[33,9,33,14],[34,9,37,14],[38,9,38,14],[39,9,39,14],[22,13,23,14],[23,2,23,3],[23,4,23,6],[25,2,25,14],[26,2,40,8],[26,9,26,14],[40,9,40,14],[52,2,52,5],[52,6,52,9],[52,10,52,14],[53,2,53,5],[53,6,53,9],[53,10,53,14],[42,2,42,14],[49,2,49,14],[50,2,50,5],[50,6,50,9],[50,10,50,14],[51,2,51,5],[51,6,51,9],[51,10,51,14],[56,2,56,5],[56,6,56,9],[56,10,56,14],[57,2,57,5],[57,6,57,9],[57,10,57,14],[54,2,54,5],[54,6,54,9],[54,10,54,14],[55,2,55,5],[55,6,55,9],[55,10,55,14],[60,2,60,5],[60,6,60,9],[60,10,60,14],[61,2,61,5],[61,6,61,9],[61,10,61,14],[58,2,58,5],[58,6,58,9],[58,10,58,14],[59,2,59,5],[59,6,59,9],[59,10,59,14],[64,2,64,5],[64,6,64,9],[64,10,64,14],[65,2,65,5],[65,6,65,9],[65,10,65,14],[62,2,62,5],[62,6,62,9],[62,10,62,14],[63,2,63,5],[63,6,63,9],[63,10,63,14],[68,2,68,5],[68,6,68,9],[68,10,68,14],[69,2,69,5],[69,6,69,9],[69,10,69,14],[66,2,66,5],[66,6,66,9],[66,10,66,14],[67,2,67,5],[67,6,67,9],[67,10,67,14],[72,2,72,5],[72,6,72,9],[72,10,72,14],[73,2,73,5],[73,6,73,9],[73,10,73,14],[70,2,70,5],[70,6,70,9],[70,10,70,14],[71,2,71,5],[71,6,71,9],[71,10,71,14],[76,2,76,5],[76,6,76,9],[76,10,76,14],[77,2,77,5],[77,6,77,9],[77,10,77,14],[74,2,74,5],[74,6,74,9],[74,10,74,14],[75,2,75,5],[75,6,75,9],[75,10,75,14],[80,2,80,5],[80,6,80,9],[80,10,80,14],[78,2,78,5],[78,6,78,9],[78,10,78,14],[79,2,79,5],[79,6,79,9],[79,10,79,14]]}
[]
[null,"      REGRESAR"]
[]
[]
[null,null,null,null,"MACROPROCESO ESTRATÉGICO",null,null,null,null,null,null,null,"CÓDIGO: ESGr027"]
[null,null,null,null,"PROCESO GESTIÓN SISTEMAS INTEGRADOS",null,null,null,null,null,null,null,"VERSIÓN: 8"]
[null,null,null,null,"MATRIZ DE MEDICIÓN Y SEGUIMIENTO A LOS PROCESOS DE GESTIÓN",null,null,null,null,null,null,null,"VIGENCIA: 2023-07-28"]
[null,null,null,null,null,null,null,null,null,null,null,null,"PÁGINA: 3 de 6"]
[]
[null,null,"FICHA DE INDICADOR"]
[]
[null,null,"MACROPROCESO",null,"Estratégico",null,null,null,"NOMBRE DEL INDICADOR",null,"Cumplimiento de los planes de mejoramiento, producto de la autoevaluación 2022- 2024"]
[null,null,"PROCESO GESTIÓN",null,"Autoevaluación y Acreditación"]
[null,null,"RESPONSABLE DE MEDICIÓN",null,"Director de Autoevaluación y Acreditación"]
[]
[null,null,"1. COMPORTAMIENTO DE INDICADOR"]
[null,null,"CLASIFICACIÓN DE LA MEDICIÓN",null,1,null,null,"TIPO DE INDICADOR",null,"Eficacia",null,"META ANUAL",null,0.8]
[null,null,"FORMULA",null,"NUMERADOR",null,"Total de actividades ejecutadas *100",null,null,null,null,"UNIDAD DE MEDIDA",null,"Porcentual"]
[null,null,null,null,"DENOMINADOR",null,"Total de actividades establecidas para la vigencia en curso"]
[null,null,"TENDENCIA",null,"Positiva",null,null,"NIVEL DE SEGREGACIÓN *",null,"Por Programa Académico",null,"ESCALA"]
[null,null,null,null,null,null,null,null,null,null,null,"Deficiente","Aceptable","Bueno","Excelente"]
[null,null,null,null,null,null,null,null,null,null,null,"0% - 50%","51% - 75%","76% - 80%","81% - 100%"]
[null,null,"ORIGEN DE DATOS NUMERADOR",null,"Reporte de Seguimiento del estado de avance de los planes de mejoramiento mediante la Plataforma PENSEMOS",null,null,"FRECUENCIA DE LA MEDICIÓN",null,"SEMESTRAL",null,"FRECUENCIA DE RESULTADO",null,"ANUAL"]
[null,null,"ORIGEN DE DATOS DENOMINADOR",null,"Reporte de Seguimiento del estado de avance de los planes de mejoramiento mediante la Plataforma PENSEMOS"]
[]
[null,null,"RESULTADOS"]
[null,null,null,null,null,null,null,null,null,"ANÁLISIS DE DATOS"]
[null,null,null,null,null,null,null,null,null,"I SEMESTRE:  En cumplimiento del cronograma de seguimiento a planes de mejoramiento, la Dirección de Autoevaluación y Acreditación realizó el tercer seguimiento a la ejecución de actividades de los planes de mejoramiento producto del proceso de autoevaluación de programas académicos. Se evidenció un cumplimiento del 55%, que corresponde a las actividades ejecutadas al 100% en cada uno de los procesos durante el primer semestre de la vigencia 2024.\n\nII SEMESTRE: En cumplimiento del cronograma de seguimiento a planes de mejoramiento, la Dirección de Autoevaluación y Acreditación realizó el cuarto y último seguimiento a la ejecución de actividades de los planes de mejoramiento producto del proceso de autoevaluación 2022 de programas académicos. Se evidenció un cumplimiento del 97%, que corresponde a las actividades ejecutadas al 100% en cada uno de los procesos durante el segundo semestre de la vigencia 2024."]
[]
[]
[]
[]
[]
[null,null,null,null,null,null,null,null,null,"ACCIÓN FORMULADA"]
[null,null,null,null,null,null,null,null,null,"I SEMESTRE: Desarrollar el seguimiento final a los planes de mejoramiento producto de la autoevaluación 2022 de los programas académicos, implementando las acciones necesarias para el cumplimiento efectivo de las actividades planificadas. \n\nII SEMESTRE: Desarrollar el proceso de Autoevaluación 2025 e incluir en los planes de mejoramiento de los programas académicos las actividades que no alcanzaron el 100% de cumplimiento al cierre de la vigencia 2024, según lo establecido en el Acuerdo 002 del CESU de 2020 y lineamientos institucionales."]
[]
[]
[]
[null,null,null,null,null,null,null,null,null,"RESPONSABLE "]
[null,null,null,null,null,null,null,null,null,{"$f":"E14","v":"Director de Autoevaluación y Acreditación"}]
[]
[]
[null,null,"PERIODO DE EVALUACIÓN"]
[null,null,"MES",{"$f":"IF(J23=\"MENSUAL\",\"ENERO\",IF(J23=\"TRIMESTRAL\",\"MARZO\",IF(J23=\"SEMESTRAL\",\"JUNIO\",IF(J23=\"ANUAL\",YEAR(TODAY()),\"\"))))","v":"JUNIO"},{"$f":"IF(J23=\"MENSUAL\",\"FEBRERO\",IF(J23=\"TRIMESTRAL\",\"JUNIO\",IF(J23=\"SEMESTRAL\",\"DICIEMBRE\",\"\")))","v":"DICIEMBRE"},{"$f":"IF(J23=\"MENSUAL\",\"MARZO\",IF(J23=\"TRIMESTRAL\",\"SEPTIEMBRE\",\"\"))","v":""},{"$f":"IF(J23=\"MENSUAL\",\"ABRIL\",IF(J23=\"TRIMESTRAL\",\"DICIEMBRE\",\"\"))","v":""},{"$f":"IF(J23=\"MENSUAL\",\"MAYO\",\"\")","v":""},{"$f":"IF(J23=\"MENSUAL\",\"JUNIO\",\"\")","v":""},{"$f":"IF(J23=\"MENSUAL\",\"JULIO\",\"\")","v":""},{"$f":"IF(J23=\"MENSUAL\",\"AGOSTO\",\"\")","v":""},{"$f":"IF(J23=\"MENSUAL\",\"SEPTIEMBRE\",\"\")","v":""},{"$f":"IF(J23=\"MENSUAL\",\"OCTUBRE\",\"\")","v":""},{"$f":"IF(J23=\"MENSUAL\",\"NOVIEMBRE\",\"\")","v":""},{"$f":"IF(J23=\"MENSUAL\",\"DICIEMBRE\",\"\")","v":""}]
[null,null,{"$f":"G18","v":"Total de actividades ejecutadas *100"},549,969]
[null,null,{"$f":"G19","v":"Total de actividades establecidas para la vigencia en curso"},1000,1001]
[null,null,"VALOR ",{"$f":"IFERROR(IF($E$17=1,D45/D46,IF($E$17=2,D45,\"\")),\"\")","v":0.54900000000000004},{"$f":"IFERROR(IF($E$17=1,E45/E46,IF($E$17=2,E45,\"\")),\"\")","v":0.968031968031968},null,{"$f":"IFERROR(IF($E$17=1,G45/G46,IF($E$17=2,G45,\"\")),\"\")","v":""},"","","","","","","",""]
[null,null,"META PONDERADA",{"$f":"IF(AND(N23=\"ANUAL\",J23=\"MENSUAL\"),N17/12,IF(AND(N23=\"ANUAL\",J23=\"TRIMESTRAL\"),N17/4,IF(AND(N23=\"ANUAL\",J23=\"SEMESTRAL\"),N17/2,IF(AND(N23=\"ANUAL\",J23=\"ANUAL\"),N17,IF(AND(N23=\"SEMESTRAL\",J23=\"MENSUAL\"),N17/6,IF(AND(N23=\"SEMESTRAL\",J23=\"TRIMESTRAL\"),N17/2,IF(AND(N23=\"SEMESTRAL\",J23=\"SEMESTRAL\"),N17,IF(AND(N23=\"SEMESTRAL\",J23=\"ANUAL\"),\"REVISAR FRECUENCIAS\",IF(AND(N23=\"TRIMESTRAL\",J23=\"MENSUAL\"),N17/3,IF(AND(N23=\"TRIMESTRAL\",J23=\"TRIMESTRAL\"),N17,IF(AND(N23=\"TRIMESTRAL\",J23=\"SEMESTRAL\"),\"REVISAR FRECUENCIAS\",IF(AND(N23=\"TRIMESTRAL\",J23=\"ANUAL\"),\"REVISAR FRECUENCIAS\",IF(AND(N23=\"MENSUAL\",J23=\"MENSUAL\"),N17,IF(AND(N23=\"MENSUAL\",J23=\"TRIMESTRAL\"),\"REVISAR FRECUENCIAS\",IF(AND(N23=\"MENSUAL\",J23=\"SEMESTRAL\"),\"REVISAR FRECUENCIAS\",IF(AND(N23=\"MENSUAL\",J23=\"ANUAL\"),\"REVISAR FRECUENCIAS\",\"\"))))))))))))))))","v":0.4},{"$f":"IF(AND(N23=\"ANUAL\",J23=\"MENSUAL\"),N17/12+D48,IF(AND(N23=\"ANUAL\",J23=\"TRIMESTRAL\"),N17/4+D48,IF(AND(N23=\"ANUAL\",J23=\"SEMESTRAL\"),N17/2+D48,IF(AND(N23=\"SEMESTRAL\",J23=\"MENSUAL\"),N17/6+D48,IF(AND(N23=\"SEMESTRAL\",J23=\"TRIMESTRAL\"),N17/2+D48,IF(AND(N23=\"SEMESTRAL\",J23=\"SEMESTRAL\"),N17,IF(AND(N23=\"TRIMESTRAL\",J23=\"MENSUAL\"),N17/3+D48,IF(AND(N23=\"TRIMESTRAL\",J23=\"TRIMESTRAL\"),N17,IF(AND(N23=\"MENSUAL\",J23=\"MENSUAL\"),N17,\"\")))))))))","v":0.8},{"$f":"IF(AND(N23=\"ANUAL\",J23=\"MENSUAL\"),N17/12+E48,IF(AND(N23=\"ANUAL\",J23=\"TRIMESTRAL\"),N17/4+E48,IF(AND(N23=\"SEMESTRAL\",J23=\"MENSUAL\"),N17/6+E48,IF(AND(N23=\"SEMESTRAL\",J23=\"TRIMESTRAL\"),N17/2,IF(AND(N23=\"TRIMESTRAL\",J23=\"MENSUAL\"),N17/3+E48,IF(AND(N23=\"TRIMESTRAL\",J23=\"TRIMESTRAL\"),N17,IF(AND(N23=\"MENSUAL\",J23=\"MENSUAL\"),N17,\"\")))))))","v":""},{"$f":"IF(AND(N23=\"ANUAL\",J23=\"MENSUAL\"),N17/12+F48,IF(AND(N23=\"ANUAL\",J23=\"TRIMESTRAL\"),N17/4+F48,IF(AND(N23=\"SEMESTRAL\",J23=\"MENSUAL\"),N17/6+F48,IF(AND(N23=\"SEMESTRAL\",J23=\"TRIMESTRAL\"),N17/2+F48,IF(AND(N23=\"TRIMESTRAL\",J23=\"MENSUAL\"),N17/3,IF(AND(N23=\"TRIMESTRAL\",J23=\"TRIMESTRAL\"),N17,IF(AND(N23=\"MENSUAL\",J23=\"MENSUAL\"),N17,\"\")))))))","v":""},{"$f":"IF(AND($N$23=\"ANUAL\",$J$23=\"MENSUAL\"),$N$17/12+G48,IF(AND(N23=\"SEMESTRAL\",J23=\"MENSUAL\"),N17/6+G48,IF(AND(N23=\"TRIMESTRAL\",J23=\"MENSUAL\"),N17/3+G48,IF(AND(N23=\"MENSUAL\",J23=\"MENSUAL\"),N17,\"\"))))","v":""},{"$f":"IF(AND($N$23=\"ANUAL\",$J$23=\"MENSUAL\"),$N$17/12+H48,IF(AND(N23=\"SEMESTRAL\",J23=\"MENSUAL\"),N17/6+H48,IF(AND(N23=\"TRIMESTRAL\",J23=\"MENSUAL\"),N17/3+H48,IF(AND(N23=\"MENSUAL\",J23=\"MENSUAL\"),N17,\"\"))))","v":""},{"$f":"IF(AND($N$23=\"ANUAL\",$J$23=\"MENSUAL\"),$N$17/12+I48,IF(AND(N23=\"SEMESTRAL\",J23=\"MENSUAL\"),N17/6,IF(AND(N23=\"TRIMESTRAL\",J23=\"MENSUAL\"),N17/3,IF(AND(N23=\"MENSUAL\",J23=\"MENSUAL\"),N17,\"\"))))","v":""},{"$f":"IF(AND($N$23=\"ANUAL\",$J$23=\"MENSUAL\"),$N$17/12+J48,IF(AND(N23=\"SEMESTRAL\",J23=\"MENSUAL\"),N17/6+J48,IF(AND(N23=\"TRIMESTRAL\",J23=\"MENSUAL\"),N17/3+J48,IF(AND(N23=\"MENSUAL\",J23=\"MENSUAL\"),N17,\"\"))))","v":""},{"$f":"IF(AND($N$23=\"ANUAL\",$J$23=\"MENSUAL\"),$N$17/12+K48,IF(AND(N23=\"SEMESTRAL\",J23=\"MENSUAL\"),N17/6+K48,IF(AND(N23=\"TRIMESTRAL\",J23=\"MENSUAL\"),N17/3+K48,IF(AND(N23=\"MENSUAL\",J23=\"MENSUAL\"),N17,\"\"))))","v":""},{"$f":"IF(AND($N$23=\"ANUAL\",$J$23=\"MENSUAL\"),$N$17/12+L48,IF(AND(N23=\"SEMESTRAL\",J23=\"MENSUAL\"),N17/6+L48,IF(AND(N23=\"TRIMESTRAL\",J23=\"MENSUAL\"),N17/3,IF(AND(N23=\"MENSUAL\",J23=\"MENSUAL\"),N17,\"\"))))","v":""},{"$f":"IF(AND($N$23=\"ANUAL\",$J$23=\"MENSUAL\"),$N$17/12+M48,IF(AND(N23=\"SEMESTRAL\",J23=\"MENSUAL\"),N17/6+M48,IF(AND(N23=\"TRIMESTRAL\",J23=\"MENSUAL\"),N17/3+M48,IF(AND(N23=\"MENSUAL\",J23=\"MENSUAL\"),N17,\"\"))))","v":""},{"$f":"IF(AND($N$23=\"ANUAL\",$J$23=\"MENSUAL\"),$N$17/12+N48,IF(AND(N23=\"SEMESTRAL\",J23=\"MENSUAL\"),N17/6+N48,IF(AND(N23=\"TRIMESTRAL\",J23=\"MENSUAL\"),N17/3+N48,IF(AND(N23=\"MENSUAL\",J23=\"MENSUAL\"),N17,\"\"))))","v":""}]
[]
[null,null,"NIVEL DE SEGREGACIÓN *"]
[null,null,"UNIDAD SEGREGADA (Ej. Facultad, Programa Académico, Área)",null,null,null,"RESULTADO",null,null,null,"ANÁLISIS DE DATOS SEGREGADO"]
[null,null,"Administración de empresas - Fusagasugá",null,null,null,0.95121951219512191,null,null,null,"En el segundo semestre de 2024, el programa académico alcanzó un cumplimiento del 95.12%, que corresponde a  39 actividades ejecutadas al 100% dentro del plan de mejoramiento."]
[null,null,"Administración de empresas - Girardot",null,null,null,"52/52",null,null,null,"En el segundo semestre de 2024, el programa académico alcanzó un cumplimiento del 100%, que corresponde a todas las actividades ejecutadas al 100% dentro del plan de mejoramiento."]
[null,null,"Administración de empresas - Ubaté",null,null,null,"23/42",null,null,null,"En el segundo semestre de 2024, el programa académico alcanzó un cumplimiento del 54,76%, que corresponde a 23 actividades ejecutadas al 100% dentro del plan de mejoramiento."]
[null,null,"Administración de empresas - Chía",null,null,null,"21/27",null,null,null,"En el segundo semestre de 2024, el programa académico alcanzó un cumplimiento del 77.78%, que corresponde a 21 actividades ejecutadas al 100% dentro del plan de mejoramiento."]
[null,null,"Administración de empresas - Facatativá",null,null,null,"26/26",null,null,null,"En el segundo semestre de 2024, el programa académico alcanzó un cumplimiento del 82%, que corresponde a todas las actividades ejecutadas al 100% dentro del plan de mejoramiento."]
[null,null,"Contaduría Pública- Fusagasugá",null,null,null,"44/44",null,null,null,"En el segundo semestre semestre de 2024, el programa académico alcanzó un cumplimiento del 11,36%, que corresponde a todas las actividades ejecutadas al 100% dentro del plan de mejoramiento."]
[null,null,"Contaduría Pública - Facatativá",null,null,null,"32/32",null,null,null,"En el segundo semestre de 2024, el programa académico alcanzó un cumplimiento del 100%, que corresponde a todas las actividades ejecutadas al 100% dentro del plan de mejoramiento."]
[null,null,"Contaduría Pública Ubaté",null,null,null,"31/31",null,null,null,"En el segundo semestre de 2024, el programa académico alcanzó un cumplimiento del 100%, que corresponde a todas las actividades ejecutadas al 100% dentro del plan de mejoramiento."]
[null,null,"Contaduría Pública - Chía",null,null,null,"27/27",null,null,null,"En el segundo semestre de 2024, el programa académico alcanzó un cumplimiento del 100%, que corresponde a todas las actividades ejecutadas al 100% dentro del plan de mejoramiento."]
[null,null,"Ingeniería Agronómica - Fusagasugá",null,null,null,"68/68",null,null,null,"En el segundo semestre de 2024, el programa académico alcanzó un cumplimiento del 100%, que corresponde a todas las  actividades ejecutadas al 100% dentro del plan de mejoramiento."]
[null,null,"Ingeniería Agronómica - Facatativá",null,null,null,"26/26",null,null,null,"En el segundo semestre de 2024, el programa académico alcanzó un cumplimiento del 100%, que corresponde a todas las actividades ejecutadas al 100% dentro del plan de mejoramiento."]
[null,null,"Ingeniería Ambiental - Girardot",null,null,null,"24/24",null,null,null,"En el segundo semestre de 2024, el programa académico alcanzó un cumplimiento del 100%, que corresponde a todas las actividades ejecutadas al 100% dentro del plan de mejoramiento."]
[null,null,"Ingeniería Ambiental - Facatativá",null,null,null,"65/65",null,null,null,"En el segundo semestre de 2024, el programa académico alcanzó un cumplimiento del 100%, que corresponde a todas las actividades ejecutadas al 100% dentro del plan de mejoramiento."]
[null,null,"Zootecnia - Fusagasugá",null,null,null,"32/32",null,null,null,"En el segundo semestre de 2024, el programa académico alcanzó un cumplimiento del 100%, que corresponde a todas las actividades ejecutadas al 100% dentro del plan de mejoramiento."]
[null,null,"Zootecnia - Ubaté",null,null,null,"41/41",null,null,null,"En el segundo semestre de 2024, el programa académico alcanzó un cumplimiento del 100%, que corresponde a todas las actividades ejecutadas al 100% dentro del plan de mejoramiento."]
[null,null,"Profesional en Ciencias del Deporte y la Educación Física - Soacha",null,null,null,"32/34",null,null,null,"En el segundo semestre de 2024, el programa académico alcanzó un cumplimiento del 94,12%, que corresponde a 32 actividades ejecutadas al 100% dentro del plan de mejoramiento."]
[null,null,"Ingeniería Electrónica - Fusagasugá",null,null,null,"62/62",null,null,null,"En el segundo semestre de 2024, el programa académico alcanzó un cumplimiento del 100%, que corresponde a todas las actividades ejecutadas al 100% dentro del plan de mejoramiento."]
[null,null,"Ingeniería Industrial - Soacha",null,null,null,"39/39",null,null,null,"En el segundo semestre de 2024, el programa académico alcanzó un cumplimiento del 100%, que corresponde a todas las actividades ejecutadas al 100% dentro del plan de mejoramiento."]
[null,null,"Ingeniería de Sistemas - Fusagasugá",null,null,null,"37/38",null,null,null,"En el segundo semestre de 2024, el programa académico alcanzó un cumplimiento del 97,37%, que corresponde a 37 actividades ejecutadas al 100% dentro del plan de mejoramiento."]
[null,null,"Ingeniería de Sistemas - Ubaté",null,null,null,"43/43",null,null,null,"En el segundo semestre de 2024, el programa académico alcanzó un cumplimiento del 100%, que corresponde a todas las actividades ejecutadas al 100% dentro del plan de mejoramiento."]
[null,null,"Ingeniería de Sistemas - Chía",null,null,null,"34/34",null,null,null,"En el segundo semestre de 2024, el programa académico alcanzó un cumplimiento del 100%, que corresponde a todas las actividades ejecutadas al 100% dentro del plan de mejoramiento."]
[null,null,"Ingeniería de Sistemas - Facatativá",null,null,null,"27/27",null,null,null,"En el segundo semestre de 2024, el programa académico alcanzó un cumplimiento del 100%, que corresponde a todas las actividades ejecutadas al 100% dentro del plan de mejoramiento."]
[null,null,"Enfermería - Girardot",null,null,null,"48/50",null,null,null,"En el segundo semestre de 2024, el programa académico alcanzó un cumplimiento del 96,00%, que corresponde a 48 actividades ejecutadas al 100% dentro del plan de mejoramiento."]
[null,null,"Música - Zipaquirá",null,null,null,"42/42",null,null,null,"En el segundo semestre de 2024, el programa académico alcanzó un cumplimiento del 100%, que corresponde a todas las actividades ejecutadas al 100% dentro del plan de mejoramiento."]
[null,null,"Psicología - Facatativá",null,null,null,"16/16",null,null,null,"En el segundo semestre de 2024, el programa académico alcanzó un cumplimiento del 100%, que corresponde a todas las actividades ejecutadas al 100% dentro del plan de mejoramiento."]
[null,null,"Esp. en Gerencia para el Desarrollo Organizacional",null,null,null,"29/29",null,null,null,"En el segundo semestre de 2024, el programa académico alcanzó un cumplimiento del 100%, que corresponde a todas las actividades ejecutadas al 100% dentro del plan de mejoramiento."]
[null,null,"Esp. en Procesos Pedagógicos del Entrenamiento Deportivo",null,null,null,"18/41",null,null,null,"En el primer semestre de 2024, el programa académico alcanzó un cumplimiento del 75%, que corresponde a 18 actividades ejecutadas al 100% dentro del plan de mejoramiento."]
[null,null,"Esp. en Educación Ambiental y Desarrollo de la Comunidad",null,null,null,"3/3",null,null,null,"En el segundo semestre de 2024, el programa académico alcanzó un cumplimiento del 100%, que corresponde a  todas las actividades ejecutadas al 100% dentro del plan de mejoramiento."]
[null,null,"Esp. Gestión de Sistemas de Información Gerencial (Virtual)",null,null,null,"6/6",null,null,null,"En el segundo semestre de 2024, el programa académico alcanzó un cumplimiento del 100%, que corresponde a todas las actividades ejecutadas al 100% dentro del plan de mejoramiento."]
[]
[]
[]
[]
[]
[]
[]
[]
[]
[]
[null,null,null,null,null,null,"Estratégico",null,null,"Eficacia"]
[null,null,null,null,null,null,"Misional",null,null,"Eficiencia"]
[null,null,null,null,null,null,"Apoyo",null,null,"Acreditación"]
[null,null,null,null,null,null,"Seguimiento, Medición, Análisis y Evaluación",null,null,"Positiva"]
[null,null,null,null,null,null,"Direccionamiento Estratégico",null,null,"Negativa"]
[null,null,null,null,null,null,"Planeación Institucional",null,null,"Por Unidad Regional"]
[null,null,null,null,null,null,"Proyectos Especiales y Relaciones Interinstitucionales",null,null,"Por Facultad"]
[null,null,null,null,null,null,"Sistemas Integrados",null,null,"Por Programa Académico"]
[null,null,null,null,null,null,"Autoevaluación y Acreditación",null,null,"Por área"]
[null,null,null,null,null,null,"Comunicaciones",null,null,"Por Laboratorio"]
[null,null,null,null,null,null,"Formación y Aprendizaje",null,null,"Otros"]
[null,null,null,null,null,null,"Ciencia, Tecnología e Innovación",null,null,"No Aplica"]
[null,null,null,null,null,null,"Interacción Social Universitaria"]
[null,null,null,null,null,null,"Bienestar Universitario"]
[null,null,null,null,null,null,"Admisiones y Registro"]
[null,null,null,null,null,null,"Graduados"]
[null,null,null,null,null,null,"Dialogando con el Mundo"]
[null,null,null,null,null,null,"Talento Humano"]
[null,null,null,null,null,null,"Jurídica"]
[null,null,null,null,null,null,"Financiera"]
[null,null,null,null,null,null,"Sistemas y Tecnología"]
[null,null,null,null,null,null,"Bienes y Servicios"]
[null,null,null,null,null,null,"Documental"]
[null,null,null,null,null,null,"Apoyo Académico"]
[null,null,null,null,null,null,"Control Interno"]
[null,null,null,null,null,null,"Control Disciplinario"]
[null,null,null,null,null,null,"Servicio de Atención al Ciudadano"]

{"sheet":"EAA-8","index":3,"n_rows":93,"n_cols":15,"rows_kept":93,"cut":false,"hidden":false,"merged":[[1,1,3,2],[4,2,7,3],[4,4,4,11],[4,12,4,14],[5,4,5,11],[5,12,5,14],[6,4,7,11],[6,12,6,14],[7,12,7,14],[15,2,15,14],[8,2,8,14],[9,2,10,14],[11,2,11,3],[11,4,11,7],[11,8,11,9],[11,10,11,14],[12,2,12,3],[12,4,12,14],[13,2,13,3],[13,4,13,14],[14,2,14,14],[16,15,17,15],[17,2,18,3],[17,4,17,5],[17,6,17,10],[17,11,18,12],[17,13,18,14],[18,4,18,5],[18,6,18,10],[16,2,16,3],[16,4,16,6],[16,7,16,8],[16,9,16,10],[16,11,16,12],[16,13,16,14],[19,2,21,3],[19,4,21,6],[19,7,21,8],[19,9,21,10],[19,11,19,14],[22,13,23,14],[23,2,23,3],[23,4,23,6],[25,2,25,14],[26,2,39,8],[26,9,26,14],[39,9,39,14],[22,2,22,3],[22,4,22,6],[22,7,23,8],[22,9,23,10],[22,11,23,12],[50,2,50,5],[50,6,50,9],[50,10,50,14],[26,15,27,15],[27,9,32,14],[33,9,33,14],[34,9,36,14],[37,9,37,14],[38,9,38,14],[41,2,41,14],[48,2,48,14],[49,2,49,5],[49,6,49,9],[49,10,49,14],[57,2,57,5],[57,6,57,9],[57,10,57,14],[51,2,51,5],[51,6,51,9],[51,10,51,14],[56,2,56,5],[56,6,56,9],[56,10,56,14],[52,10,52,14],[53,10,53,14],[54,10,54,14],[55,10,55,14],[52,6,52,9],[53,6,53,9],[54,6,54,9],[55,6,55,9],[52,2,52,5],[53,2,53,5],[54,2,54,5],[55,2,55,5]]}
[]
[null,"      REGRESAR"]
[]
[]
[null,null,null,null,"MACROPROCESO ESTRATÉGICO",null,null,null,null,null,null,null,"CÓDIGO: ESGr027"]
[null,null,null,null,"PROCESO GESTIÓN SISTEMAS INTEGRADOS",null,null,null,null,null,null,null,"VERSIÓN: 8"]
[null,null,null,null,"MATRIZ DE MEDICIÓN Y SEGUIMIENTO A LOS PROCESOS DE GESTIÓN",null,null,null,null,null,null,null,"VIGENCIA: 2023-07-28"]
[null,null,null,null,null,null,null,null,null,null,null,null,"PÁGINA: 4 de 6"]
[]
[null,null,"FICHA DE INDICADOR"]
[]
[null,null,"MACROPROCESO",null,"Estratégico",null,null,null,"NOMBRE DEL INDICADOR",null,"Cumplimiento de los planes de contingencia"]
[null,null,"PROCESO GESTIÓN",null,"Autoevaluación y Acreditación"]
[null,null,"RESPONSABLE DE MEDICIÓN",null,"Directora de Autoevaluación y Acreditación"]
[]
[null,null,"1. COMPORTAMIENTO DE INDICADOR"]
[null,null,"CLASIFICACIÓN DE LA MEDICIÓN",null,1,null,null,"TIPO DE INDICADOR",null,"Eficiencia",null,"META ANUAL",null,0.85]
[null,null,"FORMULA",null,"NUMERADOR",null,"Total de actividades ejecutadas oportunamente durante la vigencia en curso *100",null,null,null,null,"UNIDAD DE MEDIDA",null,"Porcentual"]
[null,null,null,null,"DENOMINADOR",null,"Total de actividades programadas durante la vigencia en curso"]
[null,null,"TENDENCIA",null,"Positiva",null,null,"NIVEL DE SEGREGACIÓN *",null,"Por Programa Académico",null,"ESCALA"]
[null,null,null,null,null,null,null,null,null,null,null,"Deficiente","Aceptable","Bueno","Excelente"]
[null,null,null,null,null,null,null,null,null,null,null,"0% - 65.8%","65.9% - 89.9%","81% - 85%","85.1% - 100%"]
[null,null,"ORIGEN DE DATOS NUMERADOR",null,"Informe de seguimiento",null,null,"FRECUENCIA DE LA MEDICIÓN",null,"TRIMESTRAL",null,"FRECUENCIA DE RESULTADO",null,"TRIMESTRAL"]
[null,null,"ORIGEN DE DATOS DENOMINADOR",null,"Informe de seguimiento"]
[]
[null,null,"RESULTADOS"]
[null,null,null,null,null,null,null,null,null,"ANÁLISIS DE DATOS"]
[null,null,null,null,null,null,null,null,null,"Para el  I TRIMESTRE de la vigencia 2024, se informa lo siguiente:\n \nEl plan de contingencia del programa Tecnología en Cartografía presenta un avance del  93%, que corresponde a catorce (14) actividades, de las cuales trece (13) se encuentran al 100%.\nEl plan de contingencia del programa Tecnología en Gestión Turística y Hotelera  presenta un avance del 100%, que corresponde a dieciséis (16) actividades, todas se encuentran al 100%.\nEl plan de contingencia del programa Tecnologia en Desarrollo de Software presenta un avance del 67%, que corresponde a nueve (9) actividades, de las cuales seis (6) están al 100%.\nEl plan de contingencia de la Maestría en Ciencias Ambientales presenta un avance del 90%, que corresponde a diez (10) actividades, de las cuales nueve (9) están al 100%.\nEl plan de contingencia de la Maestría en Educación presenta un avance del 100%, que corresponde a diez (8) actividades, todas se encuentran al 100%.\nEl plan de contingencia de la Especialización en Procesos Pedagógicos del Entramiento Deportivo, presenta un avance del 80%, que corresponde a cinco (5) actividades, de las cuales cuatro (4) están al 100%\n\nPara el  I I TRIMESTRE  de la vigencia 2024, se informa lo siguiente:\n \nEl plan de contingencia del programa Tecnología en Cartografía presenta un avance del 100%, que corresponde a catorce (14) actividades, todas se encuentran al 100%.\nEl plan de contingencia del programa Tecnología en Gestión Turística y Hotelera  presenta un avance del 100%, que corresponde a dieciséis (16) actividades, todas se encuentran al 100%.\nEl plan de contingencia del programa Tecnologia en Desarrollo de Software presenta un avance del 83%, de las cuales siete (7) están al 100%.\nEl plan de contingencia de la Maestría en Ciencias Ambientales presenta un avance del 100%, que corresponde a diez (10) actividades, todas se encuentran al 100%.\nEl plan de contingencia de la Maestría en Educación presenta un avance del 100%, que corresponde a diez (8) actividades, todas se encuentran al 100%.\nEl plan de contingencia de la Especialización en Procesos Pedagógicos del Entramiento Deportivo, presenta un avance del 100%, que corresponde a cinco (5) actividades, todas se encuentran al 100%.\n\nPara el  III TRIMESTRE  de la vigencia 2024, se informa lo siguiente:\n \nEl plan de contingencia del programa Tecnología en Cartografía presenta un avance del 100%, que corresponde a catorce (14) actividades, todas se encuentran al 100%.\nEl plan de contingencia del programa Tecnología en Gestión Turística y Hotelera  presenta un avance del 100%, que corresponde a dieciséis (16) actividades, todas se encuentran al 100%.\nEl plan de contingencia del programa Tecnologia en Desarrollo de Software presenta un avance del 83%, de las cuales seis (6) están al 100%.\nEl plan de contingencia de la Maestría en Ciencias Ambientales presenta un avance del 100%, que corresponde a diez (10) actividades, todas se encuentran al 100%.\nEl plan de contingencia de la Maestría en Educación presenta un avance del 100%, que corresponde a diez (8) actividades, todas se encuentran al 100%.\nEl plan de contingencia de la Especialización en Procesos Pedagógicos del Entramiento Deportivo, presenta un avance del 100%, que corresponde a cinco (5) actividades, todas se encuentran al 100%.\n\nPara el  IV TRIMESTRE  de la vigencia 2024, se informa lo siguiente:\n \nEl plan de contingencia del programa Tecnología en Cartografía presenta un avance del 100%, que corresponde a catorce (14) actividades, todas se encuentran al 100%.\nEl plan de contingencia del programa Tecnología en Gestión Turística y Hotelera  presenta un avance del 100%, que corresponde a dieciséis (16) actividades, todas se encuentran al 100%.\nEl plan de contingencia del programa Tecnologia en Desarrollo de Software presenta un avance del 89%, de las cuales ocho (8) están al 100%.\nEl plan de contingencia de la Maestría en Ciencias Ambientales presenta un avance del 100%, que corresponde a diez (10) actividades, todas se encuentran al 100%.\nEl plan de contingencia de la Maestría en Educación presenta un avance del 100%, que corresponde a diez (8) actividades, todas se encuentran al 100%.\nEl plan de contingencia de la Especialización en Procesos Pedagógicos del Entramiento Deportivo, presenta un avance del 100%, que corresponde a cinco (5) actividades, todas se encuentran al 100%."]
[]
[]
[]
[]
[]
[null,null,null,null,null,null,null,null,null,"ACCIÓN FORMULADA"]
[null,null,null,null,null,null,null,null,null,"I TRIMESTRE: Continuar con la ejecución completa de las acciones pendientes para alcanzar el 100% de cumplimiento de los planes de contingencia de los programas de Tecnología en Cartografía,  Maestría en Ciencias Ambientales, Tecnología en Desarrollo de Software y Especialización en Procesos Pedagógicos del Entrenamiento Deportivo.\n\nII TRIMESTRE: Continuar con la ejecución completa de las acciones pendientes para alcanzar el 100% de cumplimiento del plan de contingencia del programa de Tecnología en Desarrollo de Software.\n\nIII TRIMESTRE: Continuar con la ejecución completa de las acciones pendientes para alcanzar el 100% de cumplimiento del plan de contingencia del programa de Tecnología en Desarrollo de Software.\n\nIV TRIMESTRE: Continuar con la ejecución completa de las acción pendiente para alcanzar el 100% de cumplimiento del plan de contingencia del programa de Tecnología en Desarrollo de Software"]
[]
[]
[null,null,null,null,null,null,null,null,null,"RESPONSABLE "]
[null,null,null,null,null,null,null,null,null,{"$f":"E14","v":"Directora de Autoevaluación y Acreditación"}]
[]
[]
[null,null,"PERIODO DE EVALUACIÓN"]
[null,null,"MES",{"$f":"IF(J23=\"MENSUAL\",\"ENERO\",IF(J23=\"TRIMESTRAL\",\"MARZO\",IF(J23=\"SEMESTRAL\",\"JUNIO\",IF(J23=\"ANUAL\",YEAR(TODAY()),\"\"))))","v":"MARZO"},{"$f":"IF(J23=\"MENSUAL\",\"FEBRERO\",IF(J23=\"TRIMESTRAL\",\"JUNIO\",IF(J23=\"SEMESTRAL\",\"DICIEMBRE\",\"\")))","v":"JUNIO"},{"$f":"IF(J23=\"MENSUAL\",\"MARZO\",IF(J23=\"TRIMESTRAL\",\"SEPTIEMBRE\",\"\"))","v":"SEPTIEMBRE"},{"$f":"IF(J23=\"MENSUAL\",\"ABRIL\",IF(J23=\"TRIMESTRAL\",\"DICIEMBRE\",\"\"))","v":"DICIEMBRE"},{"$f":"IF(J23=\"MENSUAL\",\"MAYO\",\"\")","v":""},{"$f":"IF(J23=\"MENSUAL\",\"JUNIO\",\"\")","v":""},{"$f":"IF(J23=\"MENSUAL\",\"JULIO\",\"\")","v":""},{"$f":"IF(J23=\"MENSUAL\",\"AGOSTO\",\"\")","v":""},{"$f":"IF(J23=\"MENSUAL\",\"SEPTIEMBRE\",\"\")","v":""},{"$f":"IF(J23=\"MENSUAL\",\"OCTUBRE\",\"\")","v":""},{"$f":"IF(J23=\"MENSUAL\",\"NOVIEMBRE\",\"\")","v":""},{"$f":"IF(J23=\"MENSUAL\",\"DICIEMBRE\",\"\")","v":""}]
[null,null,{"$f":"G18","v":"Total de actividades ejecutadas oportunamente durante la vigencia en curso *100"},{"$f":"13+16+6+9+8+4","v":56},{"$f":"14+16+7+10+8+5","v":60},59,61]
[null,null,{"$f":"G19","v":"Total de actividades programadas durante la vigencia en curso"},{"$f":"14+16+9+10+8+5","v":62},{"$f":"14+16+9+10+8+5","v":62},62,62]
[null,null,"VALOR ",{"$f":"IFERROR(IF($E$17=1,D44/D45,IF($E$17=2,D44,\"\")),\"\")","v":0.90322580645161288},{"$f":"IFERROR(IF($E$17=1,E44/E45,IF($E$17=2,E44,\"\")),\"\")","v":0.967741935483871},{"$f":"IFERROR(IF($E$17=1,F44/F45,IF($E$17=2,F44,\"\")),\"\")","v":0.95161290322580649},{"$f":"IFERROR(IF($E$17=1,G44/G45,IF($E$17=2,G44,\"\")),\"\")","v":0.9838709677419355},"","","","","","","",""]
[null,null,"META PONDERADA",{"$f":"IF(AND(N23=\"ANUAL\",J23=\"MENSUAL\"),N17/12,IF(AND(N23=\"ANUAL\",J23=\"TRIMESTRAL\"),N17/4,IF(AND(N23=\"ANUAL\",J23=\"SEMESTRAL\"),N17/2,IF(AND(N23=\"ANUAL\",J23=\"ANUAL\"),N17,IF(AND(N23=\"SEMESTRAL\",J23=\"MENSUAL\"),N17/6,IF(AND(N23=\"SEMESTRAL\",J23=\"TRIMESTRAL\"),N17/2,IF(AND(N23=\"SEMESTRAL\",J23=\"SEMESTRAL\"),N17,IF(AND(N23=\"SEMESTRAL\",J23=\"ANUAL\"),\"REVISAR FRECUENCIAS\",IF(AND(N23=\"TRIMESTRAL\",J23=\"MENSUAL\"),N17/3,IF(AND(N23=\"TRIMESTRAL\",J23=\"TRIMESTRAL\"),N17,IF(AND(N23=\"TRIMESTRAL\",J23=\"SEMESTRAL\"),\"REVISAR FRECUENCIAS\",IF(AND(N23=\"TRIMESTRAL\",J23=\"ANUAL\"),\"REVISAR FRECUENCIAS\",IF(AND(N23=\"MENSUAL\",J23=\"MENSUAL\"),N17,IF(AND(N23=\"MENSUAL\",J23=\"TRIMESTRAL\"),\"REVISAR FRECUENCIAS\",IF(AND(N23=\"MENSUAL\",J23=\"SEMESTRAL\"),\"REVISAR FRECUENCIAS\",IF(AND(N23=\"MENSUAL\",J23=\"ANUAL\"),\"REVISAR FRECUENCIAS\",\"\"))))))))))))))))","v":0.85},{"$f":"IF(AND(N23=\"ANUAL\",J23=\"MENSUAL\"),N17/12+D47,IF(AND(N23=\"ANUAL\",J23=\"TRIMESTRAL\"),N17/4+D47,IF(AND(N23=\"ANUAL\",J23=\"SEMESTRAL\"),N17/2+D47,IF(AND(N23=\"SEMESTRAL\",J23=\"MENSUAL\"),N17/6+D47,IF(AND(N23=\"SEMESTRAL\",J23=\"TRIMESTRAL\"),N17/2+D47,IF(AND(N23=\"SEMESTRAL\",J23=\"SEMESTRAL\"),N17,IF(AND(N23=\"TRIMESTRAL\",J23=\"MENSUAL\"),N17/3+D47,IF(AND(N23=\"TRIMESTRAL\",J23=\"TRIMESTRAL\"),N17,IF(AND(N23=\"MENSUAL\",J23=\"MENSUAL\"),N17,\"\")))))))))","v":0.85},{"$f":"IF(AND(N23=\"ANUAL\",J23=\"MENSUAL\"),N17/12+E47,IF(AND(N23=\"ANUAL\",J23=\"TRIMESTRAL\"),N17/4+E47,IF(AND(N23=\"SEMESTRAL\",J23=\"MENSUAL\"),N17/6+E47,IF(AND(N23=\"SEMESTRAL\",J23=\"TRIMESTRAL\"),N17/2,IF(AND(N23=\"TRIMESTRAL\",J23=\"MENSUAL\"),N17/3+E47,IF(AND(N23=\"TRIMESTRAL\",J23=\"TRIMESTRAL\"),N17,IF(AND(N23=\"MENSUAL\",J23=\"MENSUAL\"),N17,\"\")))))))","v":0.85},{"$f":"IF(AND(N23=\"ANUAL\",J23=\"MENSUAL\"),N17/12+F47,IF(AND(N23=\"ANUAL\",J23=\"TRIMESTRAL\"),N17/4+F47,IF(AND(N23=\"SEMESTRAL\",J23=\"MENSUAL\"),N17/6+F47,IF(AND(N23=\"SEMESTRAL\",J23=\"TRIMESTRAL\"),N17/2+F47,IF(AND(N23=\"TRIMESTRAL\",J23=\"MENSUAL\"),N17/3,IF(AND(N23=\"TRIMESTRAL\",J23=\"TRIMESTRAL\"),N17,IF(AND(N23=\"MENSUAL\",J23=\"MENSUAL\"),N17,\"\")))))))","v":0.85},{"$f":"IF(AND($N$23=\"ANUAL\",$J$23=\"MENSUAL\"),$N$17/12+G47,IF(AND(N23=\"SEMESTRAL\",J23=\"MENSUAL\"),N17/6+G47,IF(AND(N23=\"TRIMESTRAL\",J23=\"MENSUAL\"),N17/3+G47,IF(AND(N23=\"MENSUAL\",J23=\"MENSUAL\"),N17,\"\"))))","v":""},{"$f":"IF(AND($N$23=\"ANUAL\",$J$23=\"MENSUAL\"),$N$17/12+H47,IF(AND(N23=\"SEMESTRAL\",J23=\"MENSUAL\"),N17/6+H47,IF(AND(N23=\"TRIMESTRAL\",J23=\"MENSUAL\"),N17/3+H47,IF(AND(N23=\"MENSUAL\",J23=\"MENSUAL\"),N17,\"\"))))","v":""},{"$f":"IF(AND($N$23=\"ANUAL\",$J$23=\"MENSUAL\"),$N$17/12+I47,IF(AND(N23=\"SEMESTRAL\",J23=\"MENSUAL\"),N17/6,IF(AND(N23=\"TRIMESTRAL\",J23=\"MENSUAL\"),N17/3,IF(AND(N23=\"MENSUAL\",J23=\"MENSUAL\"),N17,\"\"))))","v":""},{"$f":"IF(AND($N$23=\"ANUAL\",$J$23=\"MENSUAL\"),$N$17/12+J47,IF(AND(N23=\"SEMESTRAL\",J23=\"MENSUAL\"),N17/6+J47,IF(AND(N23=\"TRIMESTRAL\",J23=\"MENSUAL\"),N17/3+J47,IF(AND(N23=\"MENSUAL\",J23=\"MENSUAL\"),N17,\"\"))))","v":""},{"$f":"IF(AND($N$23=\"ANUAL\",$J$23=\"MENSUAL\"),$N$17/12+K47,IF(AND(N23=\"SEMESTRAL\",J23=\"MENSUAL\"),N17/6+K47,IF(AND(N23=\"TRIMESTRAL\",J23=\"MENSUAL\"),N17/3+K47,IF(AND(N23=\"MENSUAL\",J23=\"MENSUAL\"),N17,\"\"))))","v":""},{"$f":"IF(AND($N$23=\"ANUAL\",$J$23=\"MENSUAL\"),$N$17/12+L47,IF(AND(N23=\"SEMESTRAL\",J23=\"MENSUAL\"),N17/6+L47,IF(AND(N23=\"TRIMESTRAL\",J23=\"MENSUAL\"),N17/3,IF(AND(N23=\"MENSUAL\",J23=\"MENSUAL\"),N17,\"\"))))","v":""},{"$f":"IF(AND($N$23=\"ANUAL\",$J$23=\"MENSUAL\"),$N$17/12+M47,IF(AND(N23=\"SEMESTRAL\",J23=\"MENSUAL\"),N17/6+M47,IF(AND(N23=\"TRIMESTRAL\",J23=\"MENSUAL\"),N17/3+M47,IF(AND(N23=\"MENSUAL\",J23=\"MENSUAL\"),N17,\"\"))))","v":""},{"$f":"IF(AND($N$23=\"ANUAL\",$J$23=\"MENSUAL\"),$N$17/12+N47,IF(AND(N23=\"SEMESTRAL\",J23=\"MENSUAL\"),N17/6+N47,IF(AND(N23=\"TRIMESTRAL\",J23=\"MENSUAL\"),N17/3+N47,IF(AND(N23=\"MENSUAL\",J23=\"MENSUAL\"),N17,\"\"))))","v":""}]
[]
[null,null,"NIVEL DE SEGREGACIÓN *"]
[null,null,"UNIDAD SEGREGADA (Ej. Facultad, Programa Académico, Área)",null,null,null,"RESULTADO",null,null,null,"ANÁLISIS DE DATOS SEGREGADO"]
[null,null,"Tecnología en Cartografía, Modalidad Presencial, Sede Fusagasugá",null,null,null,"14/14",null,null,null,"El plan de contingencia presenta un avance del 100% en la vigencia, que corresponde a catorce (14) actividades relacionadas con monitorear los aspectos curriculares, gestionar la organización de actividades académicas y proceso formativo, gestionar la investigación, innovación y creación artística y cultural, gestionar la relación con el sector externo, gestionar el desarrollo de los profesores, monitorear los medios educativos, monitorear la infraestructura física y tecnológica, todas se encuentran al 100%."]
[null,null,"Tecnología en Gestión Turística y Hotelera, modalidad presencial, Seccional Girardot",null,null,null,"16/16",null,null,null,"El plan de contingencia presenta un avance del 100% en la vigencia, que corresponde a dieciséis (16) actividades relacionadas con monitorear los aspectos curriculares, gestionar la organización de actividades académicas y proceso formativo, gestionar la investigación, innovación y creación artística y cultural, gestionar la relación con el sector externo, gestionar el desarrollo de los profesores, monitorear los medios educativos y monitorear la infraestructura física y tecnológica, de las cuales dieciséis (16) están al 100%."]
[null,null,"Tecnología en Desarrollo de Software,  Sede Soacha",null,null,null,"8/9",null,null,null,"El plan de contingencia presenta un avance del 89% en la vigencia, que corresponde a nueve (9) actividades relacionadas con monitorear los aspectos curriculares, gestionar la organización de actividades académicas y proceso formativo, gestionar la investigación, innovación y creación artística y cultural, gestionar la relación con el sector externo, gestionar el desarrollo de los profesores, monitorear los medios educativos y monitorear la infraestructura física y tecnológica, de las cuales ocho (8) están al 100%."]
[null,null,"Maestría en Ciencias Ambientales, modalidad presencial, Sede Fusagasugá",null,null,null,"10/10",null,null,null,"El plan de contingencia presenta un avance del 100% en la vigencia, que corresponde a diez (10) actividades relacionadas con monitorear los aspectos curriculares, gestionar la organización de actividades académicas y proceso formativo, gestionar la investigación, innovación y creación artística y cultural, gestionar la relación con el sector externo, gestionar el desarrollo de los profesores, monitorear los medios educativos y monitorear la infraestructura física y tecnológica, de las cuales todas están al 100%."]
[null,null,"Maestría en Educación, modalidad presencial, Sede Fusagasugá y Sede Chía",null,null,null,"8/8",null,null,null,"El plan de contingencia presenta un avance del 100% en la vigencia, que corresponde a ocho (8) actividades relacionadas con monitorear los aspectos curriculares, gestionar la organización de actividades académicas y proceso formativo, gestionar la investigación, innovación y creación artística y cultural, gestionar la relación con el sector externo, gestionar el desarrollo de los profesores, monitorear los medios educativos y monitorear la infraestructura física y tecnológica, todas se encuentran al 100%."]
[null,null,"Especialización en Procesos Pedagógicos del Entrenamiento Deportivo",null,null,null,"5/5",null,null,null,"El plan de contingencia presenta un avance del 100% en la vigencia, que corresponde a cinco (5) actividades relacionadas con monitorear los aspectos curriculares, gestionar la organización de actividades académicas y proceso formativo, monitorear los aspectos curriculares y monitorear los medios, de las cuales todas están al 100%."]
[]
[]
[]
[]
[]
[]
[]
[]
[]
[]
[null,null,null,null,null,null,"Estratégico",null,null,"Eficacia"]
[null,null,null,null,null,null,"Misional",null,null,"Eficiencia"]
[null,null,null,null,null,null,"Apoyo",null,null,"Acreditación"]
[null,null,null,null,null,null,"Seguimiento, Medición, Análisis y Evaluación",null,null,"Positiva"]
[null,null,null,null,null,null,"Direccionamiento Estratégico",null,null,"Negativa"]
[null,null,null,null,null,null,"Planeación Institucional",null,null,"Por Unidad Regional"]
[null,null,null,null,null,null,"Proyectos Especiales y Relaciones Interinstitucionales",null,null,"Por Facultad"]
[null,null,null,null,null,null,"Sistemas Integrados",null,null,"Por Programa Académico"]
[null,null,null,null,null,null,"Autoevaluación y Acreditación",null,null,"Por área"]
[null,null,null,null,null,null,"Comunicaciones",null,null,"Por Laboratorio"]
[null,null,null,null,null,null,"Formación y Aprendizaje",null,null,"Otros"]
[null,null,null,null,null,null,"Ciencia, Tecnología e Innovación",null,null,"No Aplica"]
[null,null,null,null,null,null,"Interacción Social Universitaria"]
[null,null,null,null,null,null,"Bienestar Universitario"]
[null,null,null,null,null,null,"Admisiones y Registro"]
[null,null,null,null,null,null,"Graduados"]
[null,null,null,null,null,null,"Dialogando con el Mundo"]
[null,null,null,null,null,null,"Talento Humano"]
[null,null,null,null,null,null,"Jurídica"]
[null,null,null,null,null,null,"Financiera"]
[null,null,null,null,null,null,"Sistemas y Tecnología"]
[null,null,null,null,null,null,"Bienes y Servicios"]
[null,null,null,null,null,null,"Documental"]
[null,null,null,null,null,null,"Apoyo Académico"]
[null,null,null,null,null,null,"Control Interno"]
[null,null,null,null,null,null,"Control Disciplinario"]
[null,null,null,null,null,null,"Servicio de Atención al Ciudadano"]

{"sheet":"EAA-10","index":4,"n_rows":99,"n_cols":15,"rows_kept":99,"cut":false,"hidden":false,"merged":[[12,2,12,3],[12,4,12,14],[1,1,3,2],[4,2,7,3],[4,4,4,11],[4,12,4,14],[5,4,5,11],[5,12,5,14],[6,4,7,11],[6,12,6,14],[7,12,7,14],[9,2,10,14],[11,2,11,3],[11,4,11,7],[11,8,11,9],[11,10,11,14],[13,2,13,3],[13,4,13,14],[14,2,14,14],[15,2,15,14],[16,2,16,3],[16,4,16,6],[16,7,16,8],[16,9,16,10],[16,11,16,12],[16,13,16,14],[16,15,17,15],[16,16,17,16],[16,17,17,17],[16,18,17,21],[17,2,18,3],[17,4,18,10],[17,11,18,12],[17,13,18,14],[18,17,25,17],[18,18,25,19],[19,4,21,6],[19,7,21,8],[19,9,21,10],[19,11,19,14],[22,2,23,3],[22,4,23,6],[22,7,23,8],[26,20,27,20],[26,21,27,21],[27,9,32,14],[33,9,33,14],[22,9,23,10],[22,11,23,12],[22,13,23,14],[25,2,25,14],[26,2,42,8],[26,9,26,14],[34,9,39,14],[40,9,40,14],[41,9,41,14],[18,20,25,20],[18,21,25,21],[19,2,21,3],[53,2,53,5],[53,6,53,9],[53,10,53,14],[26,17,27,17],[26,18,27,19],[44,2,44,14],[51,2,51,14],[52,2,52,5],[52,6,52,9],[52,10,52,14],[54,2,54,5],[54,6,54,9],[54,10,54,14],[55,2,55,5],[55,6,55,9],[55,10,55,14],[56,2,56,5],[56,6,56,9],[56,10,56,14],[57,2,57,5],[57,6,57,9],[57,10,57,14],[61,2,61,14],[62,2,62,14],[58,2,58,5],[58,6,58,9],[58,10,58,14],[59,2,59,5],[59,6,59,9],[59,10,59,14]]}
[]
[null,"      REGRESAR"]
[]
[]
[null,null,null,null,"MACROPROCESO ESTRATÉGICO",null,null,null,null,null,null,null,"CÓDIGO: ESGr027"]
[null,null,null,null,"PROCESO GESTIÓN SISTEMAS INTEGRADOS - CALIDAD",null,null,null,null,null,null,null,"VERSIÓN: 8"]
[null,null,null,null,"MATRIZ DE MEDICIÓN Y SEGUIMIENTO A LOS PROCESOS DE GESTIÓN",null,null,null,null,null,null,null,"VIGENCIA: 2023-07-28"]
[null,null,null,null,null,null,null,null,null,null,null,null,"PÁGINA: 2 de 4"]
[]
[null,null,"FICHA DE INDICADOR"]
[]
[null,null,"MACROPROCESO",null,"Estratégico",null,null,null,"NOMBRE DEL INDICADOR",null,"Eficacia en la radicación de documentos para solicitud de apreciación de documentos iniciales."]
[null,null,"PROCESO GESTIÓN",null,"Autoevaluación y Acreditación"]
[null,null,"RESPONSABLE DE MEDICIÓN",null,"Directora de Autoevaluación y Acreditación"]
[]
[null,null,"1. COMPORTAMIENTO DE INDICADOR"]
[null,null,"CLASIFICACIÓN DE LA MEDICIÓN ",null,2,null,null,"TIPO DE INDICADOR",null,"Eficacia",null,"META",null,3]
[null,null,"FORMULA",null,"Número de documentos radicados ante el CNA para apreciación de condiciones iniciales",null,null,null,null,null,null,"UNIDAD DE MEDIDA",null,"Cantidad de programas académicos"]
[]
[null,null,"TENDENCIA",null,"Positiva",null,null,"NIVEL DE SEGREGACIÓN *",null,"Por Programa Académico",null,"ESCALA"]
[null,null,null,null,null,null,null,null,null,null,null,"Deficiente","Aceptable","Bueno","Excelente"]
[null,null,null,null,null,null,null,null,null,null,null,0,"1",2,3]
[null,null,"ORIGEN DE DATOS",null,"Plataforma del MEN",null,null,"FRECUENCIA DE LA MEDICIÓN",null,"ANUAL",null,"FRECUENCIA DE RESULTADO",null,"ANUAL"]
[]
[]
[null,null,"RESULTADOS"]
[null,null,null,null,null,null,null,null,null,"ANÁLISIS DE DATOS\nLos datos indican un crecimiento en los acompañamientos entre el primer trimestre y \nel segundo trimestre de mas del 100%, por la contratación del personal de la oficina\nEn el tercer trimestre se muestra un decrecimiento con respecto al periodo anterior\npor las vacaciones a mitad de año, las personas se reintegraron entre julio y agosto."]
[null,null,null,null,null,null,null,null,null,"De acuerdo con la ruta de acreditación definida por la Universidad de Cundinamarca, se radicaron al Consejo Nacional de Acreditación - CNA, tres (3) documentos solicitud de apreciación de Condiciones Iniciales de los programas Administración de Empresas Girardot, Contaduría Pública Fusagasugá e Ingeniería de Sistemas y Computación Ubaté.\n\nLos tres (3) documentos se radicaron al CNA en septiembre de 2024, se atendieron visitas de Consejeros designados por el CNA en noviembre de 2024 y se recibió aprobación de las Condiciones Iniciales para los tres (3) programas en diciembre de 2024."]
[]
[]
[]
[]
[]
[null,null,null,null,null,null,null,null,null,"ACCIÓN FORMULADA\nReformular la meta para el próximo año dependiendo de los recursos asignados."]
[null,null,null,null,null,null,null,null,null,"No aplica"]
[]
[]
[]
[]
[]
[null,null,null,null,null,null,null,null,null,"RESPONSABLE "]
[null,null,null,null,null,null,null,null,null,{"$f":"E14","v":"Directora de Autoevaluación y Acreditación"}]
[]
[]
[null,null,"PERIODO DE EVALUACIÓN"]
[null,null,"MES",{"$f":"IF(J23=\"MENSUAL\",\"ENERO\",IF(J23=\"TRIMESTRAL\",\"MARZO\",IF(J23=\"SEMESTRAL\",\"JUNIO\",IF(J23=\"ANUAL\",YEAR(TODAY()),\"\"))))","v":2025},{"$f":"IF(J23=\"MENSUAL\",\"FEBRERO\",IF(J23=\"TRIMESTRAL\",\"JUNIO\",IF(J23=\"SEMESTRAL\",\"DICIEMBRE\",\"\")))","v":""},{"$f":"IF(J23=\"MENSUAL\",\"MARZO\",IF(J23=\"TRIMESTRAL\",\"SEPTIEMBRE\",\"\"))","v":""},{"$f":"IF(J23=\"MENSUAL\",\"ABRIL\",IF(J23=\"TRIMESTRAL\",\"DICIEMBRE\",\"\"))","v":""},{"$f":"IF(J23=\"MENSUAL\",\"MAYO\",\"\")","v":""},{"$f":"IF(J23=\"MENSUAL\",\"JUNIO\",\"\")","v":""},{"$f":"IF(J23=\"MENSUAL\",\"JULIO\",\"\")","v":""},{"$f":"IF(J23=\"MENSUAL\",\"AGOSTO\",\"\")","v":""},{"$f":"IF(J23=\"MENSUAL\",\"SEPTIEMBRE\",\"\")","v":""},{"$f":"IF(J23=\"MENSUAL\",\"OCTUBRE\",\"\")","v":""},{"$f":"IF(J23=\"MENSUAL\",\"NOVIEMBRE\",\"\")","v":""},{"$f":"IF(J23=\"MENSUAL\",\"DICIEMBRE\",\"\")","v":""}]
[null,null,{"$f":"E18","v":"Número de documentos radicados ante el CNA para apreciación de condiciones iniciales"},3]
[null,null,{"$f":"G19","v":0}]
[null,null,"VALOR ",{"$f":"IFERROR(IF($E$17=1,D47/D48,IF($E$17=2,D47,\"\")),\"\")","v":3},{"$f":"IFERROR(IF($E$17=1,E47/E48,IF($E$17=2,E47,\"\")),\"\")","v":0},0,0,0,0,0,0,0,0,0,0]
[null,null,"META PONDERADA",{"$f":"IF(AND(N23=\"ANUAL\",J23=\"MENSUAL\"),N17/12,IF(AND(N23=\"ANUAL\",J23=\"TRIMESTRAL\"),N17/4,IF(AND(N23=\"ANUAL\",J23=\"SEMESTRAL\"),N17/2,IF(AND(N23=\"ANUAL\",J23=\"ANUAL\"),N17,IF(AND(N23=\"SEMESTRAL\",J23=\"MENSUAL\"),N17/6,IF(AND(N23=\"SEMESTRAL\",J23=\"TRIMESTRAL\"),N17/2,IF(AND(N23=\"SEMESTRAL\",J23=\"SEMESTRAL\"),N17,IF(AND(N23=\"SEMESTRAL\",J23=\"ANUAL\"),\"REVISAR FRECUENCIAS\",IF(AND(N23=\"TRIMESTRAL\",J23=\"MENSUAL\"),N17/3,IF(AND(N23=\"TRIMESTRAL\",J23=\"TRIMESTRAL\"),N17,IF(AND(N23=\"TRIMESTRAL\",J23=\"SEMESTRAL\"),\"REVISAR FRECUENCIAS\",IF(AND(N23=\"TRIMESTRAL\",J23=\"ANUAL\"),\"REVISAR FRECUENCIAS\",IF(AND(N23=\"MENSUAL\",J23=\"MENSUAL\"),N17,IF(AND(N23=\"MENSUAL\",J23=\"TRIMESTRAL\"),\"REVISAR FRECUENCIAS\",IF(AND(N23=\"MENSUAL\",J23=\"SEMESTRAL\"),\"REVISAR FRECUENCIAS\",IF(AND(N23=\"MENSUAL\",J23=\"ANUAL\"),\"REVISAR FRECUENCIAS\",\"\"))))))))))))))))","v":3},{"$f":"IF(AND(N23=\"ANUAL\",J23=\"MENSUAL\"),N17/12+D50,IF(AND(N23=\"ANUAL\",J23=\"TRIMESTRAL\"),N17/4+D50,IF(AND(N23=\"ANUAL\",J23=\"SEMESTRAL\"),N17/2+D50,IF(AND(N23=\"SEMESTRAL\",J23=\"MENSUAL\"),N17/6+D50,IF(AND(N23=\"SEMESTRAL\",J23=\"TRIMESTRAL\"),N17/2+D50,IF(AND(N23=\"SEMESTRAL\",J23=\"SEMESTRAL\"),N17,IF(AND(N23=\"TRIMESTRAL\",J23=\"MENSUAL\"),N17/3+D50,IF(AND(N23=\"TRIMESTRAL\",J23=\"TRIMESTRAL\"),N17,IF(AND(N23=\"MENSUAL\",J23=\"MENSUAL\"),N17,\"\")))))))))","v":""},{"$f":"IF(AND(N23=\"ANUAL\",J23=\"MENSUAL\"),N17/12+E50,IF(AND(N23=\"ANUAL\",J23=\"TRIMESTRAL\"),N17/4+E50,IF(AND(N23=\"SEMESTRAL\",J23=\"MENSUAL\"),N17/6+E50,IF(AND(N23=\"SEMESTRAL\",J23=\"TRIMESTRAL\"),N17/2,IF(AND(N23=\"TRIMESTRAL\",J23=\"MENSUAL\"),N17/3+E50,IF(AND(N23=\"TRIMESTRAL\",J23=\"TRIMESTRAL\"),N17,IF(AND(N23=\"MENSUAL\",J23=\"MENSUAL\"),N17,\"\")))))))","v":""},{"$f":"IF(AND(N23=\"ANUAL\",J23=\"MENSUAL\"),N17/12+F50,IF(AND(N23=\"ANUAL\",J23=\"TRIMESTRAL\"),N17/4+F50,IF(AND(N23=\"SEMESTRAL\",J23=\"MENSUAL\"),N17/6+F50,IF(AND(N23=\"SEMESTRAL\",J23=\"TRIMESTRAL\"),N17/2+F50,IF(AND(N23=\"TRIMESTRAL\",J23=\"MENSUAL\"),N17/3,IF(AND(N23=\"TRIMESTRAL\",J23=\"TRIMESTRAL\"),N17,IF(AND(N23=\"MENSUAL\",J23=\"MENSUAL\"),N17,\"\")))))))","v":""},{"$f":"IF(AND($N$23=\"ANUAL\",$J$23=\"MENSUAL\"),$N$17/12+G50,IF(AND(N23=\"SEMESTRAL\",J23=\"MENSUAL\"),N17/6+G50,IF(AND(N23=\"TRIMESTRAL\",J23=\"MENSUAL\"),N17/3+G50,IF(AND(N23=\"MENSUAL\",J23=\"MENSUAL\"),N17,\"\"))))","v":""},{"$f":"IF(AND($N$23=\"ANUAL\",$J$23=\"MENSUAL\"),$N$17/12+H50,IF(AND(N23=\"SEMESTRAL\",J23=\"MENSUAL\"),N17/6+H50,IF(AND(N23=\"TRIMESTRAL\",J23=\"MENSUAL\"),N17/3+H50,IF(AND(N23=\"MENSUAL\",J23=\"MENSUAL\"),N17,\"\"))))","v":""},{"$f":"IF(AND($N$23=\"ANUAL\",$J$23=\"MENSUAL\"),$N$17/12+I50,IF(AND(N23=\"SEMESTRAL\",J23=\"MENSUAL\"),N17/6,IF(AND(N23=\"TRIMESTRAL\",J23=\"MENSUAL\"),N17/3,IF(AND(N23=\"MENSUAL\",J23=\"MENSUAL\"),N17,\"\"))))","v":""},{"$f":"IF(AND($N$23=\"ANUAL\",$J$23=\"MENSUAL\"),$N$17/12+J50,IF(AND(N23=\"SEMESTRAL\",J23=\"MENSUAL\"),N17/6+J50,IF(AND(N23=\"TRIMESTRAL\",J23=\"MENSUAL\"),N17/3+J50,IF(AND(N23=\"MENSUAL\",J23=\"MENSUAL\"),N17,\"\"))))","v":""},{"$f":"IF(AND($N$23=\"ANUAL\",$J$23=\"MENSUAL\"),$N$17/12+K50,IF(AND(N23=\"SEMESTRAL\",J23=\"MENSUAL\"),N17/6+K50,IF(AND(N23=\"TRIMESTRAL\",J23=\"MENSUAL\"),N17/3+K50,IF(AND(N23=\"MENSUAL\",J23=\"MENSUAL\"),N17,\"\"))))","v":""},{"$f":"IF(AND($N$23=\"ANUAL\",$J$23=\"MENSUAL\"),$N$17/12+L50,IF(AND(N23=\"SEMESTRAL\",J23=\"MENSUAL\"),N17/6+L50,IF(AND(N23=\"TRIMESTRAL\",J23=\"MENSUAL\"),N17/3,IF(AND(N23=\"MENSUAL\",J23=\"MENSUAL\"),N17,\"\"))))","v":""},{"$f":"IF(AND($N$23=\"ANUAL\",$J$23=\"MENSUAL\"),$N$17/12+M50,IF(AND(N23=\"SEMESTRAL\",J23=\"MENSUAL\"),N17/6+M50,IF(AND(N23=\"TRIMESTRAL\",J23=\"MENSUAL\"),N17/3+M50,IF(AND(N23=\"MENSUAL\",J23=\"MENSUAL\"),N17,\"\"))))","v":""},{"$f":"IF(AND($N$23=\"ANUAL\",$J$23=\"MENSUAL\"),$N$17/12+N50,IF(AND(N23=\"SEMESTRAL\",J23=\"MENSUAL\"),N17/6+N50,IF(AND(N23=\"TRIMESTRAL\",J23=\"MENSUAL\"),N17/3+N50,IF(AND(N23=\"MENSUAL\",J23=\"MENSUAL\"),N17,\"\"))))","v":""}]
[]
[null,null,"NIVEL DE SEGREGACIÓN *"]
[null,null,"UNIDAD SEGREGADA (Ej. Facultad, Programa Académico, Área)",null,null,null,"RESULTADO",null,null,null,"ANALISIS DE DATOS SEGREGADO"]
[null,null,"Administración de Empresas Girardot",null,null,null,"1/1.",null,null,null,"El Consejo Nacional de Acreditación - CNA aprobó las Condiciones Iniciales del programa académico Administración de Empresas Girardot en diciembre 2024."]
[null,null,"Contaduría Pública Fusagasugá",null,null,null,"1/1.",null,null,null,"El Consejo Nacional de Acreditación - CNA aprobó las Condiciones Iniciales del programa académico Contaduría Pública Fusagasugá en diciembre 2024."]
[null,null,"Ingeniería de Sistemas y Computación Ubaté",null,null,null,"1/1.",null,null,null,"El Consejo Nacional de Acreditación - CNA aprobó las Condiciones Iniciales del programa académico Ingeniería de Sistemas y Computación Ubaté en diciembre 2024."]
[]
[]
[]
[]
[]
[null,null,"Diagonal 18 No. 20-29 Fusagasugá – Cundinamarca\nTeléfono (601)  8281483 Línea Gratuita 018000180414\nwww.ucundinamarca.edu.co   E-mail:  info@ucundinamarca.edu.co\nNIT: 890.680.062-2                                                                             "]
[null,null,"Documento controlado por el Sistema de Gestión de la Calidad\nAsegúrese que corresponde a la última versión consultando el Portal Institucional"]
[]
[]
[]
[]
[]
[]
[]
[]
[]
[null,null,null,null,null,null,"Estratégico",null,null,"Eficacia"]
[null,null,null,null,null,null,"Misional",null,null,"Eficiencia"]
[null,null,null,null,null,null,"Apoyo",null,null,"Acreditación"]
[null,null,null,null,null,null,"Seguimiento, Medición, Análisis y Evaluación",null,null,"Positiva"]
[null,null,null,null,null,null,"Direccionamiento Estratégico",null,null,"Negativa"]
[null,null,null,null,null,null,"Planeación Institucional",null,null,"Por Unidad Regional"]
[null,null,null,null,null,null,"Proyectos Especiales y Relaciones Interinstitucionales",null,null,"Por Facultad"]
[null,null,null,null,null,null,"Sistemas Integrados",null,null,"Por Programa Académico"]
[null,null,null,null,null,null,"Autoevaluación y Acreditación",null,null,"Por área"]
[null,null,null,null,null,null,"Comunicaciones",null,null,"Por Laboratorio"]
[null,null,null,null,null,null,"Formación y Aprendizaje",null,null,"Otros"]
[null,null,null,null,null,null,"Ciencia, Tecnología e Innovación",null,null,"No Aplica"]
[null,null,null,null,null,null,"Interacción Social Universitaria"]
[null,null,null,null,null,null,"Bienestar Universitario"]
[null,null,null,null,null,null,"Admisiones y Registro"]
[null,null,null,null,null,null,"Graduados"]
[null,null,null,null,null,null,"Dialogando con el Mundo"]
[null,null,null,null,null,null,"Talento Humano"]
[null,null,null,null,null,null,"Jurídica"]
[null,null,null,null,null,null,"Financiera"]
[null,null,null,null,null,null,"Sistemas y Tecnología"]
[null,null,null,null,null,null,"Bienes y Servicios"]
[null,null,null,null,null,null,"Documental"]
[null,null,null,null,null,null,"Apoyo Académico"]
[null,null,null,null,null,null,"Control Interno"]
[null,null,null,null,null,null,"Control Disciplinario"]
[null,null,null,null,null,null,"Servicio de Atención al Ciudadano"]

{"sheet":"ACTUALIZACIONES","index":5,"n_rows":24,"n_cols":5,"rows_kept":24,"cut":false,"hidden":false,"merged":[[1,2,1,3],[1,1,4,1],[20,1,20,4],[23,1,23,4],[6,1,6,4],[3,2,4,3],[2,2,2,3],[11,1,12,1],[11,2,12,2],[11,3,12,3],[11,4,12,4],[14,1,16,1],[14,2,16,2],[14,3,16,3],[14,4,16,4]]}
[]
[null,null,"MACROPROCESO ESTRATÉGICO",null,"CÓDIGO: ESGr027"]
[null,null,"PROCESO GESTIÓN SISTEMAS INTEGRADOS - CALIDAD",null,"VERSIÓN: 8"]
[null,null,"MATRIZ DE MEDICIÓN Y SEGUIMIENTO A LOS PROCESOS DE GESTIÓN",null,"VIGENCIA: 2023-07-28"]
[null,null,null,null,"PÁGINA: 6 de 6"]
[]
[null,"CONTROL DE ACTUALIZACIONES"]
[null,"FECHA","DESCRIPCIÓN DE LA ACTUALIZACIÓN","RESPONSABLE","CARGO"]
[null,"2021-03-09","Se suprime el indicador EAA-4 \"Participación de estudiantes en la autoevaluación de los programas académicos\", EAA-5 \"Participación de docentes en la autoevaluación de los programas académicos\", EAA-6 \"Participación de graduados en la autoevaluación de los programas académicos\" y EAA-7 \"Oportunidad en el cumplimiento del cronograma de autoevaluación\"; lo anterior, entendiendo que para la vigencia 2021 no habrá autoevaluación acorde con la naturaleza del proceso.","Víctor Hugo Londoño Aguirre","Director de Autoevaluación y Acreditación (F.A)"]
[null,"08/03//2022","Se suprime el indicador EAA-3 \"Acreditación de programas en alta calidad\" toda vez que se presenta duplicidad en la medición  con los indicadores establecidos para el proceso por plan de desarrollo mediante el frente N° 1 \"Campo multidimensional de aprendizaje\".\nSe modifica el indicador EAA-8 \"Cumplimiento de los planes de contingencia\" toda vez que el mismo tiene seguimiento por parte de la Dirección de Control Interno para los planes de mejoramiento de Contraloría de la vigencia 2019, en ese orden de ideas, para la vigencia 2022 se tomara como base para la medición los programas académicos en proceso de desistimiento.\nSe documenta el indicador EAA-9 \"Eficacia en la renovación de registros calificados\" para medición en la vigencia 2022.","Claudia Urazan Penagos","Directora de Autoevaluación y Acreditación"]
[null,"2022-09-27","Se realiza una modificación en el nombre del indicador EAA-9 \"Eficacia en la renovación de registros calificados\" a \"Eficacia en la radicación de documentos maestros para renovación de registros calificados\", el cual entrará en vigencia para la medición a corte de Diciembre 2022, esto en coherencia con el alcance de gestión del proceso y en línea con la fórmula del indicador \"Número de programas académicos radicados ante el MEN para renovación de registro calificado\". ","Claudia Urazan Penagos","Directora de Autoevaluación y Acreditación"]
[null,"15/03/2023","EAA-1 El indicador, aunque cumple la meta (dentro de los dos periodos), el proceso decide seguirlo midiendo pues da respuesta a las necesidades del mismo.\n\nEAA-2 se ajusta el nombre \"Cumplimiento de los planes de mejoramiento, producto de la autoevaluación 2022- 2024\". Este indicador no es posible subir la meta, porque el proceso de EAA inicia de nuevo el ciclo de Autoevaluación bienal y se arranca el primer año de ejecución de los planes de mejoramiento producto del proceso de autoevaluación.\n\nEAA-8 \"Cumplimiento de los Planes de Contingencia\", de acuerdo al comportamiento del indicador en la vigencia del 2022, se realiza el aumento en la meta del indicador del 80% al 85%.\n\nEAA-9 \"Eficacia en la radicación de documentos maestros para renovación de registros calificados\". De acuerdo a la dinámica del proceso los registros calificados se renuevan cada 7 años, teniendo en cuenta lo anterior, para la vigencia 2023 solo se hará la renovación de un (1) solo programa académico ESPECIALIZACIÓN EN PROCESOS PEDAGÓGICOS DE ENTRENAMIENTO DEPORTIVO\", por lo tanto, el indicador se inactivaría para la presente vigencia.\n\nSe propone el Indicador EAA-10 \"Eficacia en la radicación de documentos para solicitud de apreciación de documentos iniciales\", cuyo objetivo es ejecutar la ruta de acreditación de alta calidad institucional de la Universidad Cundinamarca. La meta de este indicador será de 14 documentos radicados ante el CNA. Con una frecuencia de medición Semestral y de Resultado Anual.","Claudia Urazan Penagos","Directora de Autoevaluación y Acreditación"]
[]
[null,"2023-08-02","Se incorpora la planificación de actividades para cada objetivo específico","Claudia Urazan Penagos","Directora de Autoevaluación y Acreditación"]
[null,"2024-02-23","EAA-1 Eficacia en la obtención de registros calificados, a pesar del buen resultado del indicador en la vigencia 2023, el proceso confirma que es necesario seguir con la medición para la vigencia 2024, para no correr el riesgo de falta de control en las actividades de la obtención de los registros calificados.\nEAA-2 Cumplimiento de los planes de mejoramiento, producto de la autoevaluación 2022 - 2024, de acuerdo con el resultado obtenido en 2023, el cual terminó en una escala de ACEPTABLE es pertinente seguir midiendo el indicador a 2024; pero a su vez es necesario que el proceso especifique el total de actividades establecidas para la vigencia en curso y no lo correspondiente al periodo 2022-2024; esto último generó que el resultado del indicador se viera afectado.\nEAA-8 Cumplimiento de los planes de contingencia, debido a los excelentes resultados obtenidos en la vigencia 2023, es necesario mantener la meta del indicador en 85%  con el fin de  asegurar la efectividad del indicador en el cumplimiento de planes de contingencia,  toda vez que se encuentra un nuevo trámite de desistimiento para el programa de Especialización en procesos pedagógicos del entrenamiento deportivo, sede Fusagasugá y Soacha, el cual está programado para ser presentado durante la próxima sesión del Consejo Académico, y posteriormente, será radicado ante la plataforma SACES del MEN. \n\nEAA-10 Eficacia en la radicación de documentos para solicitud de apreciación de documentos iniciales. Se realiza un ajuste de la meta de 14 a 3, en el entendido que para esta vigencia corresponde a 3 programas académicos a los cuales se les realizará el proceso de radicación de documentos. En la segregación se especificó a Programa Académico. Para la escala de este indicador quedaría de la siguiente forma. Deficiente:0, Aceptable:1, Bueno:2, Excelente:3.","Claudia Urazan Penagos","Directora de Autoevaluación y Acreditación"]
[]
[]
[null,"2024-11-19","Se realiza ajuste a  los objetivos de calidad (Columna E, Hoja Matriz de indicadores) desglosando de acuerdo a las  actividades,  no se modifican las actividades.\n\nSe corrije en columna K de la hoja Matriz de Indicadores la frecuencia de medicion Anual,  aprobado por los procesos y comisión de gestión para la respectiva medición de la presente vigencia 2024 segun hoja No. 5 - Indicador EAA-10.","Claudia Urazan Penagos","Directora de Autoevaluación y Acreditación"]
[]
[]
[null,"Diagonal 18 No. 20-29 Fusagasugá – Cundinamarca\nTeléfono (601)  8281483 Línea Gratuita 018000180414\nwww.ucundinamarca.edu.co   E-mail:  info@ucundinamarca.edu.co\nNIT: 890.680.062-2                                                                             "]
[]
[]
[null,"Documento controlado por el Sistema de Gestión de la Calidad\nAsegúrese que corresponde a la última versión consultando el Portal Institucional"]

{"sheet":"ITEM","index":6,"n_rows":4,"n_cols":3,"rows_kept":4,"cut":false,"hidden":true,"merged":[]}
["MENSUAL",null,"NÚMERO"]
["TRIMESTRAL",null,"PORCENTAJE"]
["SEMESTRAL"]
["ANUAL"]